Workbook

Sheet Constraints (hidden)
C1: 0 | D1: 0 | E1: 1 | F1: from #CPs | H1: Currrent | I1: Explore | L1: Totals for ALL TM & CM | R1: Default Fee Options | S1: Tab #
A2: Construction Permit Emission Rate Fee | B2: Emission Rate | C2: tons | D2: $ rate | E2: $ rate | F2: AVG#/Yr | H2: Fees | I2: Fees | L2: Total_CO | M2: =SUM(FacilityData!$D$2:$D$1178) -> 13767.3765 | R2: Construction Permit Fees | S2: 0
B3: 0 <= tons < 10 | C3: 10 | D3: 100 | E3: 1000 | F3: 172 | H3: =IF(F3<>"",D3*F3,"") -> 17200 | I3: =IF(F3<>"",E3*F3,"") -> 172000 | L3: Facility_Tons | M3: =SUM(FacilityData!$E$2:$E$1178) -> 88756.25514 | R3: Annual Emissions Fees | S3: 0
B4: 10 <= tons < 100 | C4: 100 | D4: 500 | E4: 1500 | F4: 97 | H4: =IF(F4<>"",D4*F4,"") -> 48500 | I4: =IF(F4<>"",E4*F4,"") -> 145500 | R4: Annual TM Base Fees | S4: 0
B5: 100 <= tons < 250 | C5: 250 | D5: 1000 | E5: 2000 | F5: 10 | H5: 10000 | I5: 20000 | L5: Non-Title V Fees & Other Non-Permitting Funding Totals | R5: Annual CM Review Fees | S5: 0
B6: 250 <= tons < 500 | C6: 500 | D6: 2000 | E6: 2500 | F6: 1 | H6: 2000 | I6: 2500 | L6: Fee Types | M6: Current | N6: Exploring | O6: Increase
B7: 500 <= tons < 1000 | C7: 1000 | D7: 3000 | E7: 3000 | F7: 0 | H7: 0 | I7: 0 | L7: Annual Emissions Fees | M7: =SUM(FacilityData!$G$2:$G$1178) -> 1664179.81 | N7: =SUM(FacilityData!$G$2:$G$1178) -> 1664179.81 | O7: =N7-M7 -> 0
B8: 1000 <= tons < 5000 | C8: 5000 | D8: 4000 | E8: 4000 | F8: 0 | H8: 0 | I8: 0 | L8: Annual TM Base Fees | M8: =SUM(FacilityData!$H$2:$H$1178) -> 0 | N8: =SUM(FacilityData!$J$2:$J$1178) -> 508350 | O8: =N8-M8 -> 508350
B9: tons >= 5000 | D9: 5000 | E9: 5000 | F9: 0 | H9: 0 | I9: 0 | L9: Annual CM Review Fees | M9: =SUM(FacilityData!$F$2:$F$1178) -> 296000 | N9: =SUM(FacilityData!$I$2:$I$1178) -> 708000 | O9: 412000
L10: Average Construction Permit Fees | M10: =FeeOptions!H28 -> 77700 | N10: =FeeOptions!I28 -> 340000 | O10: 262300
L11: Vehicle I&M Fees | M11: 2458715 | N11: 2458715 | O11: 0
L12: Average Visible Em. Sch. Fees | M12: 15150 | N12: 23400 | O12: 8250
L13: Other Non-Permitting Funds | M13: =SUM(M18:M20) -> 2761210 | N13: =SUM(N18:N20) -> 2761210 | O13: 0
L15: Non-Title V Grand Total | M15: =SUM(M7:M13) -> 7272954.81 | N15: =SUM(N7:N13) -> 8463854.81 | O15: =N15-M15 -> 1190900
L17: Other Source Funds | M17: Current | N17: Exploratory | O17: Change
L18: Civil Penalties | M18: 194532 | N18: 194532 | O18: =N18-M18 -> 0
L19: 105 Grant | M19: 1421478 | N19: 1421478 | O19: =N19-M19 -> 0
L20: State Funds | M20: 1145200 | N20: 1145200 | O20: 0
L23: Fee Types from tables
L24: Fee Types | M24: Current | N24: Exploratory | O24: Change
L25: Annual Emission Fees | M25: =FeeOptions!H58 -> 1664179.812 | N25: =FeeOptions!I58 -> 1664179.812 | O25: =N25-M25 -> 0
L26: Annual TM Base Fees | M26: =FeeOptions!H88 -> 0 | N26: =FeeOptions!I88 -> 508350 | O26: =N26-M26 -> 508350
L27: Annual CM Review Fees | M27: =FeeOptions!H118 -> 286250 | N27: =FeeOptions!I118 -> 708000 | O27: 421750
B28: Totals--> | F28: =SUM(F3:F27) -> 280 | H28: =SUM(H3:H27) -> 77700 | I28: =SUM(I3:I27) -> 340000
L29: Fee Types Table Locations
K30: Prgm Btn | L30: Fee Types | M30: FirstRow | N30: numRows | O30: LastRow | P30: numLimits
D31: Current | E31: Exploratory | H31: Currrent | I31: Explore | K31: N/A | L31: Construction Permit Fees | M31: 3 | N31: 7 | O31: 9 | P31: =N31-1 -> 6
A32: Annual Emission Fees $/ton rates | B32: Emission Rate | C32: tons | D32: $/Ton | E32: $/Ton | F32: #Fac's | G32: Total Tons | H32: Fees | I32: Fees | K32: #1 Get | L32: Emission Fees | M32: 33 | N32: 6 | O32: 38 | P32: =N32-1 -> 5
B33: 0 <= tons < 25 | C33: 25 | D33: 18.75 | E33: 18.75 | F33: 278 | G33: 4626.636719 | H33: =IF(G33<>"",D33*G33,"") -> 86749.43848 | I33: =IF(G33<>"",E33*G33,"") -> 86749.43848 | K33: #3 Get | L33: TM Base Fees | M33: 63 | N33: 15 | O33: 77 | P33: 14
B34: 25 <= tons < 50 | C34: 50 | D34: 18.75 | E34: 18.75 | F34: 263 | G34: 9813.628906 | H34: 184005.542 | I34: 184005.542 | K34: #2 Get | L34: CM Review Fees | M34: 93 | N34: 15 | O34: 107 | P34: 14
B35: 50 <= tons < 75 | C35: 75 | D35: 18.75 | E35: 18.75 | F35: 187 | G35: 11388.42969 | H35: 213533.0566 | I35: 213533.0566
B36: 75 <= tons < 100 | C36: 100 | D36: 18.75 | E36: 18.75 | F36: 154 | G36: 13467.32812 | H36: 252512.4023 | I36: 252512.4023
B37: 100 <= tons < 125 | C37: 125 | D37: 18.75 | E37: 18.75 | F37: 102 | G37: 11411.1875 | H37: 213959.7656 | I37: 213959.7656
B38: 125 <= tons < 150 | C38: 150 | D38: 18.75 | E38: 18.75 | F38: 59 | G38: 8022.473145 | H38: 150421.3715 | I38: 150421.3715
B39: 150 <= tons < 175 | C39: 175 | D39: 18.75 | E39: 18.75 | F39: 48 | G39: 7757.629395 | H39: 145455.5511 | I39: 145455.5511
B40: 175 <= tons < 200 | C40: 200 | D40: 18.75 | E40: 18.75 | F40: 21 | G40: 3938.074463 | H40: 73838.89618 | I40: 73838.89618
B41: 200 <= tons < 225 | C41: 225 | D41: 18.75 | E41: 18.75 | F41: 24 | G41: 5062.604004 | H41: 94923.82507 | I41: 94923.82507
B42: 225 <= tons < 250 | C42: 250 | D42: 18.75 | E42: 18.75 | F42: 9 | G42: 2161.272949 | H42: 40523.8678 | I42: 40523.8678
B43: 250 <= tons < 500 | C43: 500 | D43: 18.75 | E43: 18.75 | F43: 30 | G43: 9413.591797 | H43: 176504.8462 | I43: 176504.8462
B44: 500 <= tons < 1000 | C44: 1000 | D44: 18.75 | E44: 18.75 | F44: 1 | G44: 511.5499878 | H44: 9591.562271 | I44: 9591.562271
B45: 1000 <= tons < 2500 | C45: 2500 | D45: 18.75 | E45: 18.75 | F45: 1 | G45: 1181.849976 | H45: 22159.68704 | I45: 22159.68704
B46: 2500 <= tons < 5000 | C46: 5000 | D46: 18.75 | E46: 18.75 | F46: 0 | G46: 0 | H46: 0 | I46: 0
B47: tons >= 5000 | D47: 18.75 | E47: 18.75 | F47: 0 | G47: 0 | H47: 0 | I47: 0
B58: Totals--> | F58: =SUM(F33:F57) -> 1177 | G58: =SUM(G33:G57) -> 88756.25665 | H58: =SUM(H33:H57) -> 1664179.812 | I58: =SUM(I33:I57) -> 1664179.812
D61: Current | E61: Exploratory | H61: Current | I61: Exploratory
A62: Annual True Minor (TM) Base Fee | B62: Emission Rate | C62: tons | D62: $ rate | E62: $ rate | F62: #Fac's | H62: Fees | I62: Fees
B63: 0 <= tons < 25 | C63: 25 | D63: 0 | E63: 500 | F63: 256 | H63: =IF(F63<>"",D63*F63,"") -> 0 | I63: =IF(F63<>"",E63*F63,"") -> 128000
B64: 25 <= tons < 50 | C64: 50 | D64: 0 | E64: 550 | F64: 224 | H64: 0 | I64: 123200
B65: 50 <= tons < 75 | C65: 75 | D65: 0 | E65: 600 | F65: 148 | H65: 0 | I65: 88800
B66: 75 <= tons < 100 | C66: 100 | D66: 0 | E66: 650 | F66: 105 | H66: 0 | I66: 68250
B67: 100 <= tons < 125 | C67: 125 | D67: 0 | E67: 700 | F67: 57 | H67: 0 | I67: 39900
B68: 125 <= tons < 150 | C68: 150 | D68: 0 | E68: 750 | F68: 26 | H68: 0 | I68: 19500
B69: 150 <= tons < 175 | C69: 175 | D69: 0 | E69: 800 | F69: 20 | H69: 0 | I69: 16000
B70: 175 <= tons < 200 | C70: 200 | D70: 0 | E70: 850 | F70: 9 | H70: 0 | I70: 7650
B71: 200 <= tons < 225 | C71: 225 | D71: 0 | E71: 900 | F71: 8 | H71: 0 | I71: 7200
B72: 225 <= tons < 250 | C72: 250 | D72: 0 | E72: 950 | F72: 3 | H72: 0 | I72: 2850
B73: 250 <= tons < 500 | C73: 500 | D73: 0 | E73: 1000 | F73: 5 | H73: 0 | I73: 5000
B74: 500 <= tons < 1000 | C74: 1000 | D74: 0 | E74: 1500 | F74: 0 | H74: 0 | I74: 0
B75: 1000 <= tons < 2500 | C75: 2500 | D75: 0 | E75: 2000 | F75: 1 | H75: 0 | I75: 2000
B76: 2500 <= tons < 5000 | C76: 5000 | D76: 0 | E76: 2500 | F76: 0 | H76: 0 | I76: 0
B77: tons >= 5000 | D77: 0 | E77: 3000 | F77: 0 | H77: 0 | I77: 0
B88: Totals--> | F88: =SUM(F63:F87) -> 862 | H88: =SUM(H63:H87) -> 0 | I88: =SUM(I63:I87) -> 508350
D91: Current | E91: Exploratory | H91: Currrent | I91: Explore
A92: Annual Conditional Major (CM) Review Fee | B92: Emission Rate | C92: tons | D92: $/Ton | E92: $/Ton | F92: #Fac's | H92: Fees | I92: Fees
B93: 0 <= tons < 25 | C93: 25 | D93: 250 | E93: 1000 | F93: 10 | H93: =IF(F93<>"",D93*F93,"") -> 2500 | I93: =IF(F93<>"",E93*F93,"") -> 10000
B94: 25 <= tons < 50 | C94: 50 | D94: 250 | E94: 1250 | F94: 27 | H94: 6750 | I94: 33750
B95: 50 <= tons < 75 | C95: 75 | D95: 500 | E95: 1500 | F95: 35 | H95: 17500 | I95: 52500
B96: 75 <= tons < 100 | C96: 100 | D96: 500 | E96: 1750 | F96: 43 | H96: 21500 | I96: 75250
B97: 100 <= tons < 125 | C97: 125 | D97: 500 | E97: 2000 | F97: 47 | H97: 23500 | I97: 94000
B98: 125 <= tons < 150 | C98: 150 | D98: 500 | E98: 2250 | F98: 34 | H98: 17000 | I98: 76500
B99: 150 <= tons < 175 | C99: 175 | D99: 500 | E99: 2500 | F99: 27 | H99: 13500 | I99: 67500
B100: 175 <= tons < 200 | C100: 200 | D100: 2000 | E100: 2750 | F100: 17 | H100: 34000 | I100: 46750
B101: 200 <= tons < 225 | C101: 225 | D101: 2000 | E101: 3000 | F101: 19 | H101: 38000 | I101: 57000
B102: 225 <= tons < 250 | C102: 250 | D102: 2000 | E102: 3250 | F102: 8 | H102: 16000 | I102: 26000
B103: 250 <= tons < 500 | C103: 500 | D103: 2000 | E103: 3500 | F103: 45 | H103: 90000 | I103: 157500
B104: 500 <= tons < 1000 | C104: 1000 | D104: 2000 | E104: 3750 | F104: 3 | H104: 6000 | I104: 11250
B105: 1000 <= tons < 2500 | C105: 2500 | D105: 2000 | E105: 4000 | F105: 0 | H105: 0 | I105: 0
B106: 2500 <= tons < 5000 | C106: 5000 | D106: 2000 | E106: 4500 | F106: 0 | H106: 0 | I106: 0
B107: tons >= 5000 | D107: 2000 | E107: 5000 | F107: 0 | H107: 0 | I107: 0
B118: Totals--> | F118: =SUM(F93:F117) -> 315 | H118: =SUM(H93:H117) -> 286250 | I118: =SUM(I93:I117) -> 708000

Sheet NT5 Billing Schedule (hidden)
A1: January | B1: February | C1: March | D1: April | E1: May | F1: June | G1: July | H1: August | I1: September | J1: October | K1: November | L1: December | N1: County | O1: TN County #
A2: 01 | B2: 08 | C2: 16 | D2: 25 | E2: 32 | F2: 40 | G2: 52 | H2: 58 | I2: 66 | J2: 73 | K2: 80 | L2: 88 | N2: Anderson County | O2: 01
A3: 02 | B3: 09 | C3: 17 | D3: 26 | E3: 33 | F3: 41 | G3: 53 | H3: 59 | I3: 67 | J3: 74 | K3: 81 | L3: 89 | N3: Bedford County | O3: 02
A4: 03 | B4: 10 | C4: 18 | D4: 27 | E4: 34 | F4: 42 | G4: 54 | H4: 60 | I4: 68 | J4: 75 | K4: 82 | L4: 90 | N4: Benton County | O4: 03
A5: 04 | B5: 11 | C5: 19 | D5: 28 | E5: 35 | F5: 43 | G5: 55 | H5: 61 | I5: 69 | J5: 76 | K5: 83 | L5: 91 | N5: Bledsoe County | O5: 04
A6: 05 | B6: 12 | C6: 20 | D6: 29 | E6: 36 | F6: 44 | G6: 56 | H6: 62 | I6: 70 | J6: 77 | K6: 84 | L6: 92 | N6: Blount County | O6: 05
A7: 06 | B7: 13 | C7: 21 | D7: 30 | E7: 37 | F7: 45 | G7: 57 | H7: 63 | I7: 71 | J7: 78 | K7: 85 | L7: 93 | N7: Bradley County | O7: 06
A8: 07 | B8: 14 | C8: 22 | D8: 31 | E8: 38 | F8: 46 | H8: 64 | I8: 72 | J8: 79 | K8: 86 | L8: 94 | N8: Campbell County | O8: 07
B9: 15 | C9: 23 | E9: 39 | F9: 47 | H9: 65 | K9: 87 | L9: 95 | N9: Cannon County | O9: 08
C10: 24 | F10: 48 | N10: Carroll County | O10: 09
F11: 49 | N11: Carter County | O11: 10
F12: 50 | N12: Cheatham County | O12: 11
F13: 51 | N13: Chester County | O13: 12
N14: Claiborne County | O14: 13
N15: Clay County | O15: 14
N16: Cocke County | O16: 15
N17: Coffee County | O17: 16
N18: Crockett County | O18: 17
N19: Cumberland County | O19: 18
N20: Davidson County | O20: 19
N21: Decatur County | O21: 20
N22: DeKalb County | O22: 21
N23: Dickson County | O23: 22
N24: Dyer County | O24: 23
N25: Fayette County | O25: 24
N26: Fentress County | O26: 25
N27: Franklin County | O27: 26
N28: Gibson County | O28: 27
N29: Giles County | O29: 28
N30: Grainger County | O30: 29
N31: Greene County | O31: 30
N32: Grundy County | O32: 31
N33: Hamblen County | O33: 32
N34: Hamilton County | O34: 33
N35: Hancock County | O35: 34
N36: Hardeman County | O36: 35
N37: Hardin County | O37: 36
N38: Hawkins County | O38: 37
N39: Haywood County | O39: 38
N40: Henderson County | O40: 39
N41: Henry County | O41: 40
N42: Hickman County | O42: 41
N43: Houston County | O43: 42
N44: Humphreys County | O44: 43
N45: Jackson County | O45: 44
N46: Jefferson County | O46: 45
N47: Johnson County | O47: 46
N48: Knox County | O48: 47
N49: Lake County | O49: 48
N50: Lauderdale County | O50: 49
N51: Lawrence County | O51: 50
N52: Lewis County | O52: 51
N53: Lincoln County | O53: 52
N54: Loudon County | O54: 53
N55: Mc Minn County | O55: 54
N56: Mc Nairy County | O56: 55
N57: Macon County | O57: 56
N58: Madison County | O58: 57
N59: Marion County | O59: 58
N60: Marshall County | O60: 59
N61: Maury County | O61: 60
N62: Meigs County | O62: 61
N63: Monroe County | O63: 62
N64: Montgomery County | O64: 63
N65: Moore County | O65: 64
N66: Morgan County | O66: 65
N67: Obion County | O67: 66
N68: Overton County | O68: 67
N69: Perry County | O69: 68
N70: Pickett County | O70: 69
N71: Polk County | O71: 70
N72: Putnam County | O72: 71
N73: Rhea County | O73: 72
N74: Roane County | O74: 73
N75: Robertson County | O75: 74
N76: Rutherford County | O76: 75
N77: Scott County | O77: 76
N78: Sequatchie County | O78: 77
N79: Sevier County | O79: 78
N80: Shelby County | O80: 79
N81: Smith County | O81: 80
N82: Stewart County | O82: 81
N83: Sullivan County | O83: 82
N84: Sumner County | O84: 83
N85: Tipton County | O85: 84
N86: Trousdale County | O86: 85
N87: Unicoi County | O87: 86
N88: Union County | O88: 87
N89: Van Buren County | O89: 88
N90: Warren County | O90: 89
N91: Washington County | O91: 90
N92: Wayne County | O92: 91
N93: Weakley County | O93: 92
N94: White County | O94: 93
N95: Williamson County | O95: 94
N96: Wilson County | O96: 95

Sheet FacilityData
A1: Facility Id | B1: Category | C1: Primary Name | D1: Total_CO | E1: Facility_Tons | F1: Current_CM_Review_Fee | G1: Current_Annual_Fee | H1: Current_TM_Review_Fee | I1: Exploratory_CM_Review_Fee | J1: Exploratory_TM_Review_Fee | AV1: Explore_Annual_Fee
A2: 01-0006 | B2: TM | C2: AMETEK, Inc. dba Advanced Measurement Technology, Inc. | D2: 0 | E2: 24.9 | G2: 466.88 | H2: 0 | J2: 500 | AV2: 466.8749928
A3: 01-0010 | B3: TM | C3: Rogers Group, Inc. | D3: 0 | E3: 61.7 | G3: 1156.88 | H3: 0 | J3: 600 | AV3: 1156.875014
A4: 01-0030 | B4: TM | C4: Methodist Medical Center of Oak Ridge | D4: 12.87 | E4: 89.83 | G4: 1684.31 | H4: 0 | J4: 650 | AV4: 1684.312534
A5: 01-0054 | B5: TM | C5: APAC Atlantic, Inc./dba Harrison Construction Oak Ridge Concrete Portable | D5: 1.8 | E5: 34.86 | G5: 653.62 | H5: 0 | J5: 550 | AV5: 653.6250114
A6: 01-0061 | B6: CM | C6: Rogers Group, Inc. dba Oak Ridge Asphalt | D6: 30.9 | E6: 115.3 | F6: 1000 | G6: 2161.88 | H6: 0 | I6: 2250 | AV6: 2161.875057
A7: 01-0140 | B7: TM | C7: Manufacturing Sciences Corporation | D7: 7.28 | E7: 35.0571 | G7: 657.32 | H7: 0 | J7: 550 | AV7: 657.3205948
A8: 01-0142 | B8: TM | C8: Sivad Inc, dba Hustler Boat Trailers | D8: 0 | E8: 14.363 | G8: 269.31 | H8: 0 | J8: 500 | AV8: 269.3062484
A9: 01-0148 | B9: TM | C9: Clinton Pallet Company | D9: 0 | E9: 16.9 | G9: 316.88 | H9: 0 | J9: 500 | AV9: 316.8749928
A10: 01-0154 | B10: TM | C10: Polyone Corporation | D10: 1.7 | E10: 142.1 | G10: 2664.38 | H10: 0 | J10: 750 | AV10: 2664.375114
A11: 01-0162 | B11: TM | C11: Nuclear Lead Co. Inc. | D11: 0 | E11: 27.5 | G11: 515.62 | H11: 0 | J11: 550 | AV11: 515.625
A12: 01-0163 | B12: TM | C12: CMH Manufacturing, Inc dba Clayton Homes - Appalachia | D12: 0 | E12: 73.32 | G12: 1374.75 | H12: 0 | J12: 600 | AV12: 1374.749994
A13: 01-0177 | B13: TM | C13: Powder Cote II | D13: 0.2 | E13: 44.9 | G13: 841.88 | H13: 0 | J13: 550 | AV13: 841.8750286
A14: 01-0178 | B14: CM | C14: Mirion Technologies (Canberra), Inc. | D14: 2.89 | E14: 26.53 | F14: 250 | G14: 497.44 | H14: 0 | I14: 1250 | AV14: 497.4375129
A15: 01-0185 | B15: TM | C15: Aisin Automotive Casting Tennessee, Inc. | D15: 10.18 | E15: 80.9 | G15: 1516.88 | H15: 0 | J15: 650 | AV15: 1516.875029
A16: 01-0188 | B16: TM | C16: Premium Coal Company, Incorporated | D16: 0 | E16: 53.8 | G16: 1008.75 | H16: 0 | J16: 600 | AV16: 1008.749986
A17: 01-0234 | B17: CM | C17: Shawmut Advanced Material Solutions | D17: 0 | E17: 93.2 | F17: 500 | G17: 1747.5 | H17: 0 | I17: 1750 | AV17: 1747.499943
A18: 01-0236 | B18: TM | C18: American Centrifuge Manufacturing | D18: 3.9 | E18: 31.7 | G18: 594.38 | H18: 0 | J18: 550 | AV18: 594.3750143
A19: 01-0242 | B19: TM | C19: Rocket Oil Company dba Weigel's 64 | D19: 0 | E19: 22.32 | G19: 418.5 | H19: 0 | J19: 500 | AV19: 418.4999943
A20: 01-0244 | B20: TM | C20: Atlas Pipeline Tennessee | D20: 23.2 | E20: 64.9 | G20: 1216.88 | H20: 0 | J20: 600 | AV20: 1216.875029
A21: 01-0245 | B21: TM | C21: Rogers Group, Inc. - Clinton Quarry | D21: 0 | E21: 48.8 | G21: 915 | H21: 0 | J21: 550 | AV21: 914.9999857
A22: 01-0247 | B22: TM | C22: SL Tennessee LLC | D22: 0 | E22: 164.33 | G22: 3081.19 | H22: 0 | J22: 800 | AV22: 3081.187534
A23: 01-0270 | B23: TM | C23: Rocket Oil Company dba Weigel's 82 | D23: 0 | E23: 30.87 | G23: 578.81 | H23: 0 | J23: 550 | AV23: 578.8125157
A24: 01-0275 | B24: TM | C24: 3M Company dba 3M Clinton | D24: 19.5 | E24: 61.76 | G24: 1158 | H24: 0 | J24: 600 | AV24: 1157.999969
A25: 01-0276 | B25: TM | C25: MHF Packaging Solutions, LLC | D25: 0 | E25: 10.96 | G25: 205.5 | H25: 0 | J25: 500 | AV25: 205.5000007
A26: 01-0279 | B26: TM | C26: APAC Atlantic dba Harrison Construction Company UPF Concrete Batch Plant | D26: 5.69 | E26: 88.1 | G26: 1651.88 | H26: 0 | J26: 650 | AV26: 1651.874971
A27: 01-0300 | B27: TM | C27: Concrete Concepts of Tennessee | D27: 0 | E27: 42.24 | G27: 792 | H27: 0 | J27: 550 | AV27: 792.0000315
A28: 02-0003 | B28: TM | C28: Jensen's Incorporated | D28: 0 | E28: 25.69 | G28: 481.69 | H28: 0 | J28: 550 | AV28: 481.68751
A29: 02-0007 | B29: TM | C29: Twist Beauty Packaging US Inc. dba Albea | D29: 0 | E29: 67.4 | G29: 1263.75 | H29: 0 | J29: 600 | AV29: 1263.750029
A30: 02-0011 | B30: TM | C30: Tyson Farms, Inc. | D30: 17.93 | E30: 108.01 | G30: 2025.19 | H30: 0 | J30: 700 | AV30: 2025.18754
A31: 02-0013 | B31: TM | C31: Rogers Group, Inc. - Shelbyville Quarry | D31: 0 | E31: 94.39 | G31: 1769.81 | H31: 0 | J31: 650 | AV31: 1769.812489
A32: 02-0028 | B32: TM | C32: Smyrna Ready Mix Concrete LLC dba Shelbyville Plant | D32: 0 | E32: 10.3 | G32: 193.12 | H32: 0 | J32: 500 | AV32: 193.1250036
A33: 02-0031 | B33: TM | C33: Musgrave Pencil Company, Inc. | D33: 0 | E33: 69.1 | G33: 1295.62 | H33: 0 | J33: 600 | AV33: 1295.624971
A34: 02-0053 | B34: CM | C34: National Pen Tennessee | D34: 0 | E34: 47.12 | F34: 250 | G34: 883.5 | H34: 0 | I34: 1250 | AV34: 883.49998
A35: 02-0059 | B35: TM | C35: Jostens Inc. | D35: 0 | E35: 66 | G35: 1237.5 | H35: 0 | J35: 600 | AV35: 1237.5
A36: 02-0080 | B36: TM | C36: Vulcan Construction Materials, LLC dba Shelbyville Quarry | D36: 0 | E36: 134.3 | G36: 2518.12 | H36: 0 | J36: 750 | AV36: 2518.125057
A37: 02-0084 | B37: TM | C37: Henry's Cabinets | D37: 0 | E37: 27.59 | G37: 517.31 | H37: 0 | J37: 550 | AV37: 517.3125029
A38: 02-0089 | B38: TM | C38: Shelbyville Pencil Company | D38: 0 | E38: 22 | G38: 412.5 | H38: 0 | J38: 500 | AV38: 412.5
A39: 02-0093 | B39: TM | C39: Rogers Group, Inc. - Deason Quarry | D39: 0 | E39: 41.9 | G39: 785.62 | H39: 0 | J39: 550 | AV39: 785.6250286
A40: 02-0106 | B40: CM | C40: Bedford County Asphalt | D40: 21.34 | E40: 38.78 | F40: 500 | G40: 727.12 | H40: 0 | I40: 1500 | AV40: 727.1249771
A41: 02-0109 | B41: CM | C41: Hawkins Asphalt Paving, LLC | D41: 30 | E41: 52.04 | F41: 500 | G41: 975.75 | H41: 0 | I41: 1750 | AV41: 975.7500172
A42: 02-0110 | B42: CM | C42: Wright Paving Contractors, Inc. | D42: 9.8 | E42: 12.8 | F42: 250 | G42: 240 | H42: 0 | I42: 1000 | AV42: 240.0000036
A43: 02-0112 | B43: TM | C43: Cooper's Steel Fabricators, Inc. dba Cooper Steel | D43: 0 | E43: 58.32 | G43: 1093.5 | H43: 0 | J43: 600 | AV43: 1093.499994
A44: 02-0134 | B44: TM | C44: Earth Solutions, Inc. | D44: 0 | E44: 45 | G44: 843.75 | H44: 0 | J44: 550 | AV44: 843.75
A45: 02-0150 | B45: TM | C45: Henry's Cabinets | D45: 0 | E45: 24.54 | G45: 460.12 | H45: 0 | J45: 500 | AV45: 460.1250172
A46: 03-0003 | B46: CM | C46: Unimin Tennessee Company L.P. | D46: 12.2 | E46: 139.5 | F46: 1000 | G46: 2615.62 | H46: 0 | I46: 2500 | AV46: 2615.625
A47: 03-0006 | B47: TM | C47: Vulcan Materials Company LLC | D47: 0 | E47: 94.7 | G47: 1775.62 | H47: 0 | J47: 650 | AV47: 1775.624943
A48: 03-0032 | B48: TM | C48: Palmer Tool Company, Inc. | D48: 0 | E48: 10.2 | G48: 191.25 | H48: 0 | J48: 500 | AV48: 191.2499964
A49: 03-0040 | B49: TM | C49: S & W Pallet Company, Inc. | D49: 0 | E49: 55.26 | G49: 1036.12 | H49: 0 | J49: 600 | AV49: 1036.124969
A50: 03-0047 | B50: CM | C50: Delta Contracting Company, L.L.C. | D50: 26 | E50: 35.16 | F50: 500 | G50: 659.25 | H50: 0 | I50: 1500 | AV50: 659.2499971
A51: 03-0049 | B51: TM | C51: Camden Hardwood Prod | D51: 0 | E51: 39.4 | G51: 738.75 | H51: 0 | J51: 550 | AV51: 738.7500286
A52: 03-0055 | B52: TM | C52: MagPro, LLC | D52: 10.1 | E52: 77.1 | G52: 1445.62 | H52: 0 | J52: 650 | AV52: 1445.624971
A53: 04-0007 | B53: TM | C53: TDOC (Formerly Taft Youth Development Center) | D53: 9.36 | E53: 89.27 | G53: 1673.81 | H53: 0 | J53: 650 | AV53: 1673.812437
A54: 04-0009 | B54: TM | C54: Bledsoe County Highway Department | D54: 0 | E54: 94 | G54: 1762.5 | H54: 0 | J54: 650 | AV54: 1762.5
A55: 04-0032 | B55: TM | C55: Dunlap Stone Inc. | D55: 0 | E55: 40.41 | G55: 757.69 | H55: 0 | J55: 550 | AV55: 757.6874971
A56: 04-0034 | B56: CM | C56: Dunlap Stone, Inc. Quarry 3 | D56: 80 | E56: 55.19 | F56: 1000 | G56: 1034.81 | H56: 0 | I56: 2250 | AV56: 1034.812474
A57: 04-0043 | B57: TM | C57: Tennessee Department of Corrections, Bledsoe County Correctional Complex(BCCX) | D57: 19.23 | E57: 44.125 | G57: 827.34 | H57: 0 | J57: 550 | AV57: 827.34375
A58: 05-0007 | B58: TM | C58: Vulcan Construction Materials, LLC dba Maryville Quarry | D58: 0 | E58: 111.6 | G58: 2092.5 | H58: 0 | J58: 700 | AV58: 2092.499971
A59: 05-0021 | B59: CM | C59: APAC Atlantic, Inc./Harrison Division dba Maryville Concrete | D59: 45.5 | E59: 127.07 | F59: 1000 | G59: 2382.56 | H59: 0 | I59: 2500 | AV59: 2382.562494
A60: 05-0030 | B60: CM | C60: Tennessee Farmers Co-Op Feed Mill | D60: 0 | E60: 55.35 | F60: 500 | G60: 1037.81 | H60: 0 | I60: 1500 | AV60: 1037.812471
A61: 05-0036 | B61: CM | C61: Blount Memorial Hospital | D61: 0.01 | E61: 59.48 | F61: 500 | G61: 1115.25 | H61: 0 | I61: 1500 | AV61: 1115.249991
A62: 05-0051 | B62: TM | C62: The Independent Funeral Group, Inc. | D62: 6 | E62: 13.8 | G62: 258.75 | H62: 0 | J62: 500 | AV62: 258.7500036
A63: 05-0094 | B63: CM | C63: Gilded Mirrors Inc. | D63: 0 | E63: 24.9 | F63: 250 | G63: 466.88 | H63: 0 | I63: 1000 | AV63: 466.8749928
A64: 05-0117 | B64: TM | C64: Maryville College | D64: 78.4 | E64: 206.1 | G64: 3864.38 | H64: 0 | J64: 900 | AV64: 3864.375114
A65: 05-0130 | B65: TM | C65: Apac Atlantic, Inc. / dba Harrison Construction Topside Concrete | D65: 0 | E65: 12.2 | G65: 228.75 | H65: 0 | J65: 500 | AV65: 228.7499964
A66: 05-0132 | B66: TM | C66: East Tennessee Natural Gas Company Compr | D66: 59.1 | E66: 176.1 | G66: 3301.88 | H66: 0 | J66: 850 | AV66: 3301.875114
A67: 05-0138 | B67: CM | C67: Denso Manufacturing Tennessee Inc. | D67: 0 | E67: 155.14 | F67: 1000 | G67: 2908.88 | H67: 0 | I67: 2500 | AV67: 2908.874989
A68: 05-0143 | B68: TM | C68: Royal Metal Powders, Inc. | D68: 0 | E68: 22.63 | G68: 424.31 | H68: 0 | J68: 500 | AV68: 424.3124843
A69: 05-0164 | B69: TM | C69: Arconic Inc (formerly Alcoa Recycling Company) | D69: 0 | E69: 54.9 | G69: 1029.38 | H69: 0 | J69: 600 | AV69: 1029.375029
A70: 05-0171 | B70: TM | C70: Tennessee Farmers Co-Op Fertilization | D70: 0 | E70: 15.7 | G70: 294.38 | H70: 0 | J70: 500 | AV70: 294.3749964
A71: 05-0172 | B71: TM | C71: Standard Aero (Alliance) Inc | D71: 38.2 | E71: 88 | G71: 1650 | H71: 0 | J71: 650 | AV71: 1650
A72: 05-0176 | B72: CM | C72: Flex-N-Gate Rockford, Inc. | D72: 0 | E72: 111.33 | F72: 1000 | G72: 2087.44 | H72: 0 | I72: 2000 | AV72: 2087.437534
A73: 05-0179 | B73: CM | C73: Custom Quarry | D73: 0 | E73: 79.96 | F73: 500 | G73: 1499.25 | H73: 0 | I73: 1750 | AV73: 1499.249983
A74: 05-0182 | B74: CM | C74: Denso Manufacturing Tennessee Inc. | D74: 0 | E74: 223.2 | F74: 1000 | G74: 4185 | H74: 0 | I74: 3000 | AV74: 4184.999943
A75: 05-0195 | B75: TM | C75: Vulcan Construction Materials,LLC dba Rockford Quarry | D75: 0 | E75: 98.4 | G75: 1845 | H75: 0 | J75: 650 | AV75: 1845.000029
A76: 05-0200 | B76: TM | C76: Boatmate Trailers, Llc | D76: 0 | E76: 140.6 | G76: 2636.25 | H76: 0 | J76: 750 | AV76: 2636.250114
A77: 05-0201 | B77: TM | C77: Jim L. Bivens dba Bivens Log Homes | D77: 0 | E77: 20.24 | G77: 379.5 | H77: 0 | J77: 500 | AV77: 379.4999957
A78: 05-0204 | B78: CM | C78: Kellems Recycling Systems, Inc. | D78: 3.3 | E78: 41.8 | F78: 250 | G78: 783.75 | H78: 0 | I78: 1250 | AV78: 783.7499857
A79: 05-0284 | B79: TM | C79: Aircel LLC C/O Mecca Resources Inc | D79: 0 | E79: 33.8 | G79: 633.75 | H79: 0 | J79: 550 | AV79: 633.7499857
A80: 05-0303 | B80: TM | C80: ALCOA Gas Producers, LLC | D80: 51.2 | E80: 44.2 | G80: 828.75 | H80: 0 | J80: 550 | AV80: 828.7500143
A81: 05-0305 | B81: TM | C81: Smoky Mountain Metals | D81: 0 | E81: 54.8 | G81: 1027.5 | H81: 0 | J81: 600 | AV81: 1027.499986
A82: 05-0312 | B82: CM | C82: Cintas Corporation dba Cintas Knoxville | D82: 5.04 | E82: 129.11 | F82: 1000 | G82: 2420.81 | H82: 0 | I82: 2250 | AV82: 2420.812511
A83: 05-0329 | B83: TM | C83: McGhee Tyson Airport | D83: 18.47 | E83: 57.922 | G83: 1086.04 | H83: 0 | J83: 600 | AV83: 1086.037517
A84: 05-0336 | B84: TM | C84: Kroger Fuel Center #U-683 | D84: 0 | E84: 20.93 | G84: 392.44 | H84: 0 | J84: 500 | AV84: 392.4375057
A85: 05-0345 | B85: TM | C85: Cirrus Design Corporation aka Cirrus Aircraft | D85: 0 | E85: 79.1 | G85: 1483.12 | H85: 0 | J85: 650 | AV85: 1483.124971
A86: 05-0372 | B86: TM | C86: Law & Hicks Millwork, Inc. | D86: 0 | E86: 24.2 | G86: 453.75 | H86: 0 | J86: 500 | AV86: 453.7500143
A87: 06-0008 | B87: TM | C87: Archer Daniels Midland Milling Company | D87: 0 | E87: 98.8 | G87: 1852.5 | H87: 0 | J87: 650 | AV87: 1852.500057
A88: 06-0021 | B88: TM | C88: Vulcan Construction Materials, LLC dba Cleveland Quarry | D88: 0 | E88: 87.8 | G88: 1646.25 | H88: 0 | J88: 650 | AV88: 1646.250057
A89: 06-0022 | B89: TM | C89: Manufacturers Chemical | D89: 11.18 | E89: 54.9 | G89: 1029.38 | H89: 0 | J89: 600 | AV89: 1029.375029
A90: 06-0056 | B90: TM | C90: Cleveland TN Hospital Co., Inc. dba Skyridge Medical Center | D90: 13.03 | E90: 126.87 | G90: 2378.81 | H90: 0 | J90: 750 | AV90: 2378.812551
A91: 06-0075 | B91: TM | C91: Georgia-Pacific Corrugated, LLC | D91: 9.8 | E91: 139.9 | G91: 2623.12 | H91: 0 | J91: 750 | AV91: 2623.124886
A92: 06-0108 | B92: CM | C92: Southeastern Materials, Inc. | D92: 25.3 | E92: 45.8 | F92: 500 | G92: 858.75 | H92: 0 | I92: 1500 | AV92: 858.7499857
A93: 06-0157 | B93: CM | C93: Eaton Corporation | D93: 0 | E93: 50.06 | F93: 250 | G93: 938.62 | H93: 0 | I93: 1500 | AV93: 938.6250257
A94: 06-0160 | B94: CM | C94: Mars Wrigley Confectionery US, LLC | D94: 81.21 | E94: 244.32 | F94: 2000 | G94: 4581 | H94: 0 | I94: 3500 | AV94: 4581.000137
A95: 06-0167 | B95: TM | C95: Bayer Healthcare LLC | D95: 10.77 | E95: 50.99 | G95: 956.06 | H95: 0 | J95: 600 | AV95: 956.0625315
A96: 06-0176 | B96: CM | C96: International Paper Company | D96: 9.05 | E96: 162.3 | F96: 1000 | G96: 3043.12 | H96: 0 | I96: 2500 | AV96: 3043.125057
A97: 06-0179 | B97: CM | C97: Mueller Co. | D97: 0.6 | E97: 103.2 | F97: 1000 | G97: 1935 | H97: 0 | I97: 2000 | AV97: 1934.999943
A98: 06-0180 | B98: CM | C98: Polartec Tennessee Manufacturing, LLC | D98: 39.17 | E98: 413.21 | F98: 2000 | G98: 7747.69 | H98: 0 | I98: 3500 | AV98: 7747.68734
A99: 06-0189 | B99: TM | C99: Hickory Springs Manufacturing Co | D99: 0 | E99: 119.2 | G99: 2235 | H99: 0 | J99: 700 | AV99: 2234.999943
A100: 06-0200 | B100: CM | C100: Central Asphalt, Inc. | D100: 40 | E100: 38.9 | F100: 500 | G100: 729.38 | H100: 0 | I100: 1750 | AV100: 729.3750286
A101: 06-0211 | B101: CM | C101: Impreglon Tennessee Inc. | D101: 0 | E101: 132.76 | F101: 1000 | G101: 2489.25 | H101: 0 | I101: 2250 | AV101: 2489.249897
A102: 06-0218 | B102: TM | C102: Cormetech Inc. dba Cleveland TN Plant | D102: 11.04 | E102: 191.58 | G102: 3592.12 | H102: 0 | J102: 850 | AV102: 3592.125034
A103: 06-0221 | B103: TM | C103: Sequatchie Concrete Service, Inc. | D103: 0 | E103: 25.4 | G103: 476.25 | H103: 0 | J103: 550 | AV103: 476.2499928
A104: 06-0231 | B104: TM | C104: Renfro Charleston LLC | D104: 3.6 | E104: 29.4 | G104: 551.25 | H104: 0 | J104: 550 | AV104: 551.2499928
A105: 06-0279 | B105: TM | C105: United Packers, LLC | D105: 10.82 | E105: 84.54 | G105: 1585.12 | H105: 0 | J105: 650 | AV105: 1585.125017
A106: 06-0282 | B106: CM | C106: Wacker Polysilicon North America, LLC | D106: 89.51 | E106: 141.78 | F106: 1000 | G106: 2658.38 | H106: 0 | I106: 3250 | AV106: 2658.374977
A107: 06-0283 | B107: TM | C107: Whirlpool Cleveland Division | D107: 10.1 | E107: 100.53 | G107: 1884.94 | H107: 0 | J107: 700 | AV107: 1884.937477
A108: 06-0284 | B108: TM | C108: Linde Gas North America, LLC | D108: 0 | E108: 10.18 | G108: 190.88 | H108: 0 | J108: 500 | AV108: 190.8750057
A109: 06-0286 | B109: TM | C109: Jackson Furniture Industries dba Jackson Cushion Plant | D109: 0 | E109: 106.1 | G109: 1989.38 | H109: 0 | J109: 700 | AV109: 1989.374971
A110: 06-0299 | B110: TM | C110: Kroger LLP I dba Peyton's Southeastern | D110: 5.79 | E110: 16.65 | G110: 312.19 | H110: 0 | J110: 500 | AV110: 312.1874928
A111: 07-0002 | B111: TM | C111: Hinkle Contracting Company, LLC | D111: 0 | E111: 34.5 | G111: 646.88 | H111: 0 | J111: 550 | AV111: 646.875
A112: 07-0018 | B112: CM | C112: Rogers Group, Inc. - LaFollette Asphalt | D112: 76.8 | E112: 119.5 | F112: 1000 | G112: 2240.62 | H112: 0 | I112: 2750 | AV112: 2240.625
A113: 07-0027 | B113: TM | C113: LaFollette COM HSP dba Campbell County HMA, LLC | D113: 1.88 | E113: 10.17 | G113: 190.69 | H113: 0 | J113: 500 | AV113: 190.6875014
A114: 07-0081 | B114: TM | C114: C & C Concrete Products Inc. | D114: 0 | E114: 42.5 | G114: 796.88 | H114: 0 | J114: 550 | AV114: 796.875
A115: 07-0086 | B115: TM | C115: Rogers Group, Inc. - Caryville Quarry | D115: 0 | E115: 52.27 | G115: 980.06 | H115: 0 | J115: 600 | AV115: 980.0625086
A116: 07-0101 | B116: TM | C116: Clinch River Casting Inc. | D116: 0 | E116: 111.18 | G116: 2084.62 | H116: 0 | J116: 700 | AV116: 2084.625006
A117: 07-0132 | B117: TM | C117: Campbell County Environmental Services | D117: 36.6 | E117: 157.4 | G117: 2951.25 | H117: 0 | J117: 800 | AV117: 2951.249886
A118: 07-0134 | B118: TM | C118: Xtreme Tops, LLC | D118: 0 | E118: 20.1 | G118: 376.88 | H118: 0 | J118: 500 | AV118: 376.8750072
A119: 07-0136 | B119: TM | C119: Creekmore Lumber Company, Inc. | D119: 0 | E119: 54.5 | G119: 1021.88 | H119: 0 | J119: 600 | AV119: 1021.875
A120: 07-0141 | B120: TM | C120: Triple H Coal, LLC dba Rosevelt Tipple | D120: 0 | E120: 47.2 | G120: 885 | H120: 0 | J120: 550 | AV120: 885.0000143
A121: 07-0161 | B121: TM | C121: Cedar Hill Construction Supply Co., Inc. | D121: 2.5 | E121: 30.34 | G121: 568.88 | H121: 0 | J121: 550 | AV121: 568.8750029
A122: 07-0162 | B122: TM | C122: CNX Gas (Bluegrass) | D122: 1.5 | E122: 26.62 | G122: 499.12 | H122: 0 | J122: 550 | AV122: 499.1250157
A123: 07-0180 | B123: TM | C123: Potter South East LLC | D123: 5.04 | E123: 15.09 | G123: 282.94 | H123: 0 | J123: 500 | AV123: 282.9375029
A124: 07-0181 | B124: CM | C124: Potter South East LLC | D124: 37.54 | E124: 85.93 | F124: 1000 | G124: 1611.19 | H124: 0 | I124: 2000 | AV124: 1611.187506
A125: 08-0034 | B125: TM | C125: Vulcan Construction Materials, LLC dba Readyville Quarry | D125: 0 | E125: 96.3 | G125: 1805.62 | H125: 0 | J125: 650 | AV125: 1805.625057
A126: 08-0040 | B126: CM | C126: Composite Solutions LLC | D126: 0 | E126: 42.8 | F126: 250 | G126: 802.5 | H126: 0 | I126: 1250 | AV126: 802.4999857
A127: 08-0049 | B127: TM | C127: Stones River Quarry | D127: 0 | E127: 61.4 | G127: 1151.25 | H127: 0 | J127: 600 | AV127: 1151.250029
A128: 09-0015 | B128: TM | C128: Espey Gin Company, Inc. | D128: 0 | E128: 48.6 | G128: 911.25 | H128: 0 | J128: 550 | AV128: 911.2499714
A129: 09-0079 | B129: TM | C129: Preferred Rubber Compounding Corporation | D129: 0 | E129: 44.9 | G129: 841.88 | H129: 0 | J129: 550 | AV129: 841.8750286
A130: 09-0119 | B130: TM | C130: Shomaker Lumber Company | D130: 22 | E130: 67.3 | G130: 1261.88 | H130: 0 | J130: 600 | AV130: 1261.875057
A131: 10-0011 | B131: CM | C131: Summers Taylor Matierals | D131: 19.49 | E131: 45.64 | F131: 500 | G131: 855.75 | H131: 0 | I131: 1500 | AV131: 855.7499886
A132: 10-0012 | B132: TM | C132: BWI ETN LLC dba Blue Water Industries BWI Watauga Quarry | D132: 0 | E132: 98.1 | G132: 1839.38 | H132: 0 | J132: 650 | AV132: 1839.374971
A133: 10-0046 | B133: CM | C133: Colorworks, Inc. | D133: 20.02 | E133: 176.33 | F133: 1000 | G133: 3306.19 | H133: 0 | I133: 2750 | AV133: 3306.187534
A134: 10-0071 | B134: TM | C134: Lewis Wood Products Inc | D134: 0 | E134: 31.1 | G134: 583.12 | H134: 0 | J134: 550 | AV134: 583.1250072
A135: 10-0075 | B135: TM | C135: Snap On Tools | D135: 0 | E135: 89.6773 | G135: 1681.45 | H135: 0 | J135: 650 | AV135: 1681.449366
A136: 10-0086 | B136: TM | C136: BWI ETN LLC dba Blue Water Industries BWI Elizabethton LLC Quarry | D136: 0 | E136: 56.43 | G136: 1058.06 | H136: 0 | J136: 600 | AV136: 1058.062506
A137: 10-0090 | B137: TM | C137: Robertson-Ceco II Corporation - NCI Building Systems dba Star Building Systems | D137: 0 | E137: 100.15 | G137: 1877.81 | H137: 0 | J137: 700 | AV137: 1877.812529
A138: 10-0130 | B138: TM | C138: Borla Performance Industries | D138: 5.06 | E138: 109.01 | G138: 2043.94 | H138: 0 | J138: 700 | AV138: 2043.93754
A139: 10-0148 | B139: TM | C139: GP Harmon Recycling Plant Operations LLC | D139: 0 | E139: 27.6 | G139: 517.5 | H139: 0 | J139: 550 | AV139: 517.5000072
A140: 10-0153 | B140: TM | C140: International Paper | D140: 0 | E140: 37.5 | G140: 703.12 | H140: 0 | J140: 550 | AV140: 703.125
A141: 10-0154 | B141: CM | C141: Royal Pest Solutions dba McCloud Lumber Co. | D141: 0 | E141: 9.9 | F141: 250 | G141: 185.62 | H141: 0 | I141: 1000 | AV141: 185.6249928
A142: 10-0165 | B142: TM | C142: Carter County Solid Waste Landfill | D142: 79.72 | E142: 69.14 | G142: 1296.38 | H142: 0 | J142: 600 | AV142: 1296.374989
A143: 11-0042 | B143: TM | C143: Gate Precast Company | D143: 0 | E143: 31.8 | G143: 596.25 | H143: 0 | J143: 550 | AV143: 596.2499857
A144: 11-0048 | B144: TM | C144: C and W Pools, Inc. | D144: 0 | E144: 17.85 | G144: 334.69 | H144: 0 | J144: 500 | AV144: 334.6875072
A145: 11-0053 | B145: TM | C145: Caraustar Industries, Inc. | D145: 0 | E145: 161 | G145: 3018.75 | H145: 0 | J145: 800 | AV145: 3018.75
A146: 11-0085 | B146: TM | C146: Rogers Manufacturing Corporation | D146: 0 | E146: 42.7 | G146: 800.62 | H146: 0 | J146: 550 | AV146: 800.6250143
A147: 11-0097 | B147: TM | C147: Madison Mill, Inc. | D147: 0 | E147: 49.6 | G147: 930 | H147: 0 | J147: 550 | AV147: 929.9999714
A148: 12-0023 | B148: TM | C148: Anvil International, Inc | D148: 0 | E148: 15.4 | G148: 288.75 | H148: 0 | J148: 500 | AV148: 288.7499928
A149: 12-0036 | B149: TM | C149: Premier Manufacturing Corporation | D149: 5.66 | E149: 69.01 | G149: 1293.94 | H149: 0 | J149: 600 | AV149: 1293.93754
A150: 13-0004 | B150: TM | C150: England Inc | D150: 0 | E150: 76.5 | G150: 1434.38 | H150: 0 | J150: 650 | AV150: 1434.375
A151: 13-0006 | B151: TM | C151: Vulcan Materials Company, LLC dba Tazewell Quarry | D151: 0 | E151: 115.2 | G151: 2160 | H151: 0 | J151: 700 | AV151: 2159.999943
A152: 13-0009 | B152: CM | C152: Brooks Furniture Manufacturing Inc. | D152: 7.9 | E152: 73.9 | F152: 500 | G152: 1385.62 | H152: 0 | I152: 1750 | AV152: 1385.625029
A153: 13-0013 | B153: CM | C153: Rogers Group, Inc.-Tazewell Asphalt | D153: 60 | E153: 143.78 | F153: 1000 | G153: 2695.88 | H153: 0 | I153: 3000 | AV153: 2695.874977
A154: 13-0019 | B154: TM | C154: Southern Energy Homes, Inc. dba Giles | D154: 0 | E154: 57.15 | G154: 1071.56 | H154: 0 | J154: 600 | AV154: 1071.562529
A155: 13-0049 | B155: CM | C155: Kopper Glo Mining, LLC dba Marion Tipple | D155: 0 | E155: 142.11 | F155: 1000 | G155: 2664.56 | H155: 0 | I155: 2250 | AV155: 2664.562511
A156: 13-0069 | B156: TM | C156: B & F Hot Mix Asphalt, Inc. | D156: 85.4 | E156: 77.4 | G156: 1451.25 | H156: 0 | J156: 650 | AV156: 1451.250029
A157: 13-0073 | B157: TM | C157: Homesteader | D157: 0 | E157: 62.7 | G157: 1175.62 | H157: 0 | J157: 600 | AV157: 1175.625014
A158: 13-0085 | B158: TM | C158: Continuum Midstream, LLC. | D158: 16.2 | E158: 40.7 | G158: 763.12 | H158: 0 | J158: 550 | AV158: 763.1250143
A159: 13-0102 | B159: TM | C159: Duracap Materials, LLC dba Goins Hollow Quarry | D159: 0 | E159: 19 | G159: 356.25 | H159: 0 | J159: 500 | AV159: 356.25
A160: 14-0001 | B160: TM | C160: Rogers Group, Inc. | D160: 0 | E160: 28.07 | G160: 526.31 | H160: 0 | J160: 550 | AV160: 526.3124943
A161: 14-0018 | B161: TM | C161: Ritter Pallet, Llc | D161: 0 | E161: 50.7 | G161: 950.62 | H161: 0 | J161: 600 | AV161: 950.6250143
A162: 15-0001 | B162: CM | C162: ConAgra Foods | D162: 47.91 | E162: 86.12 | F162: 1000 | G162: 1614.75 | H162: 0 | I162: 2250 | AV162: 1614.750051
A163: 15-0032 | B163: TM | C163: Cocke County Highway Department | D163: 0 | E163: 69.6 | G163: 1305 | H163: 0 | J163: 600 | AV163: 1304.999971
A164: 15-0071 | B164: TM | C164: Hommel Concrete Company | D164: 20.3 | E164: 20.34 | G164: 381.38 | H164: 0 | J164: 500 | AV164: 381.3750029
A165: 15-0075 | B165: CM | C165: Eastern Plating LLC | D165: 0.31 | E165: 14.33 | F165: 250 | G165: 268.69 | H165: 0 | I165: 1000 | AV165: 268.6874986
A166: 15-0077 | B166: TM | C166: American Appliance Products, Inc. | D166: 3.77 | E166: 67.56 | G166: 1266.75 | H166: 0 | J166: 600 | AV166: 1266.749954
A167: 15-0085 | B167: TM | C167: Vulcan Construction Materials, LLC dba Newport Quarry | D167: 0 | E167: 111.9 | G167: 2098.12 | H167: 0 | J167: 700 | AV167: 2098.125029
A168: 15-0088 | B168: TM | C168: Newport Paving and Ready Mix dba Concrete Plant 8 | D168: 0 | E168: 40.36 | G168: 756.75 | H168: 0 | J168: 550 | AV168: 756.7500114
A169: 15-0090 | B169: CM | C169: Charles Blalock and Sons, Inc. dba Asphalt Plant 4 | D169: 20.37 | E169: 75.61 | F169: 500 | G169: 1417.69 | H169: 0 | I169: 1750 | AV169: 1417.687511
A170: 15-0091 | B170: CM | C170: Valore Furniture, LLC | D170: 0 | E170: 104.8 | F170: 1000 | G170: 1965 | H170: 0 | I170: 2000 | AV170: 1965.000057
A171: 15-0092 | B171: CM | C171: Lisega Inc. | D171: 0 | E171: 86.5 | F171: 500 | G171: 1621.88 | H171: 0 | I171: 1750 | AV171: 1621.875
A172: 15-0095 | B172: TM | C172: Hommel Concrete Company | D172: 0.56 | E172: 15.48 | G172: 290.25 | H172: 0 | J172: 500 | AV172: 290.2499914
A173: 15-0119 | B173: TM | C173: Charles Blalock & Sons, Inc. | D173: 1.18 | E173: 56.45 | G173: 1058.44 | H173: 0 | J173: 600 | AV173: 1058.437514
A174: 15-0125 | B174: TM | C174: Hommel Rock and Quarry | D174: 0 | E174: 14.5 | G174: 271.88 | H174: 0 | J174: 500 | AV174: 271.875
A175: 15-0139 | B175: CM | C175: Oakcrest Lumber, Inc. | D175: 62.77 | E175: 86.09 | F175: 1000 | G175: 1614.19 | H175: 0 | I175: 2250 | AV175: 1614.187431
A176: 15-0141 | B176: TM | C176: Hommel Concrete Company - Clear Creek Quarry and Crushing Facility | D176: 0 | E176: 14.5 | G176: 271.88 | H176: 0 | J176: 500 | AV176: 271.875
A177: 16-0003 | B177: TM | C177: MCA Fabrication, Inc. | D177: 0 | E177: 21 | G177: 393.75 | H177: 0 | J177: 500 | AV177: 393.75
A178: 16-0009 | B178: TM | C178: George A. Dickel & Company | D178: 21.8 | E178: 1181.85 | G178: 22159.69 | H178: 0 | J178: 2000 | AV178: 22159.68704
A179: 16-0017 | B179: TM | C179: Rogers Group, Inc. dba Hillsboro Quarry | D179: 0 | E179: 50.4 | G179: 945 | H179: 0 | J179: 600 | AV179: 945.0000286
A180: 16-0039 | B180: CM | C180: Rogers Group, Inc. dba Hillsboro Asphalt | D180: 110 | E180: 156.3 | F180: 2000 | G180: 2930.62 | H180: 0 | I180: 3500 | AV180: 2930.625057
A181: 16-0087 | B181: TM | C181: Schmiede Corporation | D181: 0 | E181: 40.27 | G181: 755.06 | H181: 0 | J181: 550 | AV181: 755.0625086
A182: 16-0096 | B182: TM | C182: Goodrich Landing Gear Division | D182: 0 | E182: 52.72 | G182: 988.5 | H182: 0 | J182: 600 | AV182: 988.5000229
A183: 16-0106 | B183: TM | C183: Kokomo Grain Company, Inc. | D183: 0 | E183: 10.3 | G183: 193.12 | H183: 0 | J183: 500 | AV183: 193.1250036
A184: 16-0128 | B184: CM | C184: Acme Mechanical Contractors Inc. | D184: 0 | E184: 144.573 | F184: 1000 | G184: 2710.74 | H184: 0 | I184: 2250 | AV184: 2710.743713
A185: 16-0133 | B185: TM | C185: U.S. Display Group, Inc. | D185: 0 | E185: 40.45 | G185: 758.44 | H185: 0 | J185: 550 | AV185: 758.4375143
A186: 16-0143 | B186: TM | C186: K & S Steel Fabrication Inc. | D186: 0 | E186: 35.1 | G186: 658.12 | H186: 0 | J186: 550 | AV186: 658.1249714
A187: 16-0149 | B187: TM | C187: Marine Master Trailers | D187: 0 | E187: 80.42 | G187: 1507.88 | H187: 0 | J187: 650 | AV187: 1507.874966
A188: 16-0155 | B188: TM | C188: Kokomo Grain Company | D188: 0 | E188: 14.9 | G188: 279.38 | H188: 0 | J188: 500 | AV188: 279.3749928
A189: 16-0184 | B189: TM | C189: Sanford L. P. | D189: 0 | E189: 35.8 | G189: 671.25 | H189: 0 | J189: 550 | AV189: 671.2499857
A190: 16-0213 | B190: TM | C190: Aspen Technologies, Inc. | D190: 0 | E190: 47.2 | G190: 885 | H190: 0 | J190: 550 | AV190: 885.0000143
A191: 17-0005 | B191: TM | C191: L & H Gin Company, Inc. | D191: 0 | E191: 45.5 | G191: 853.12 | H191: 0 | J191: 550 | AV191: 853.125
A192: 17-0006 | B192: TM | C192: Crockett Gin Company | D192: 0 | E192: 48 | G192: 900 | H192: 0 | J192: 550 | AV192: 900
A193: 17-0013 | B193: TM | C193: Farmers Friendship Gin, Inc. | D193: 0 | E193: 21.4 | G193: 401.25 | H193: 0 | J193: 500 | AV193: 401.2499928
A194: 17-0014 | B194: TM | C194: Crockett Mills Gin, LLC | D194: 0 | E194: 38 | G194: 712.5 | H194: 0 | J194: 550 | AV194: 712.5
A195: 17-0036 | B195: TM | C195: The Pictsweet Company dba Bells, TN Plant | D195: 12.95 | E195: 17.47 | G195: 327.56 | H195: 0 | J195: 500 | AV195: 327.5624871
A196: 17-0043 | B196: TM | C196: Cairo Farmers Gin LLC | D196: 0 | E196: 56.3 | G196: 1055.62 | H196: 0 | J196: 600 | AV196: 1055.624986
A197: 17-0051 | B197: TM | C197: Hughes Trailers Of Jackson, Llc | D197: 0 | E197: 64.4 | G197: 1207.5 | H197: 0 | J197: 600 | AV197: 1207.500029
A198: 17-0053 | B198: TM | C198: G & G Trailers | D198: 0 | E198: 54.7 | G198: 1025.62 | H198: 0 | J198: 600 | AV198: 1025.625014
A199: 17-0068 | B199: TM | C199: O'Neal Trailers, LLC | D199: 0 | E199: 36 | G199: 675 | H199: 0 | J199: 550 | AV199: 675
A200: 18-0002 | B200: TM | C200: Manchester Tank and Equipment | D200: 4.3 | E200: 81.95 | G200: 1536.56 | H200: 0 | J200: 650 | AV200: 1536.562443
... 978 more rows

Sheet GS facility (hidden)
A1: Facility Id | B1: Category | C1: Primary Name | D1: Total_CO | E1: Facility_Tons | F1: Current_Rev_Fee | G1: Current_Annual_Fee | H1: Current_Base_Fee | I1: Explore_Rev_Fee | J1: Explore_Annual_Fee | K1: Explore_Base_Fee
A2: 01-0197 | B2: GS | C2: Pilot Travel Centers LLC dba Pilot Travel Center 314 | D2: 0 | E2: 16.56 | G2: 310.5 | H2: 0 | J2: 496.8
A3: 01-0260 | B3: GS | C3: Weigel's #79 | D3: 0 | E3: 27.9 | G3: 523.12 | H3: 0 | J3: 837
A4: 05-0327 | B4: GS | C4: K-VA-T Food Stores, Inc. 651 | D4: 0 | E4: 11.2 | G4: 210 | H4: 0 | J4: 336
A5: 07-0175 | B5: GS | C5: Food City Gas N Go #661 | D5: 0 | E5: 10.32 | G5: 193.5 | H5: 0 | J5: 309.6
A6: 07-0176 | B6: GS | C6: Rocket Oil Company dba Weigel's 83 | D6: 0 | E6: 27.9 | G6: 523.12 | H6: 0 | J6: 837
A7: 07-0179 | B7: GS | C7: Speedway LLC dba Speedway LLC #1577 | D7: 0 | E7: 13.95 | G7: 261.56 | H7: 0 | J7: 418.5
A8: 11-0059 | B8: GS | C8: Murphy Usa #7062 Murphy Oil Usa | D8: 0 | E8: 12.9 | G8: 241.88 | H8: 0 | J8: 387
A9: 13-0104 | B9: GS | C9: K-VA-T Food Stores, Inc. | D9: 0 | E9: 11.2 | G9: 210 | H9: 0 | J9: 336
A10: 15-0136 | B10: GS | C10: Rocket Oil Company dba Weigel's 80 | D10: 0 | E10: 33.5 | G10: 628.12 | H10: 0 | J10: 1005
A11: 18-0200 | B11: GS | C11: Food City Gas N Go #656 | D11: 0 | E11: 10.32 | G11: 193.5 | H11: 0 | J11: 309.6
A12: 22-0181 | B12: GS | C12: Huck's #392 | D12: 0 | E12: 11.16 | G12: 209.25 | H12: 0 | J12: 334.8
A13: 32-0307 | B13: GS | C13: K-Vat Food Stores Inc dba Food City Gas N Go 3607 | D13: 0 | E13: 11.2 | G13: 210 | H13: 0 | J13: 336
A14: 32-0313 | B14: GS | C14: Food City Gas N Go 646 | D14: 0 | E14: 13.95 | G14: 261.56 | H14: 0 | J14: 418.5
A15: 32-0318 | B15: GS | C15: KVAT Food Store Inc dba Food City Gas N Go 602 | D15: 0 | E15: 16.74 | G15: 313.88 | H15: 0 | J15: 502.2
A16: 53-0190 | B16: GS | C16: Love's Travel Stop #480 | D16: 0 | E16: 27.9 | G16: 523.12 | H16: 0 | J16: 837
A17: 54-0248 | B17: GS | C17: Speedway LLC dba Speedway 7147 | D17: 0 | E17: 19.53 | G17: 366.19 | H17: 0 | J17: 585.9
A18: 58-0130 | B18: GS | C18: Love's Travel Stop 490 | D18: 0 | E18: 27.9 | G18: 523.12 | H18: 0 | J18: 837
A19: 62-0151 | B19: GS | C19: Rocket Oil Company dba Weigel's #86 | D19: 0 | E19: 27.9 | G19: 523.12 | H19: 0 | J19: 837
A20: 63-0193 | B20: GS | C20: Murphy Usa #5367 Murphy Oil Usa Inc. | D20: 0 | E20: 13.4 | G20: 251.25 | H20: 0 | J20: 402
A21: 63-0194 | B21: GS | C21: Murphy Usa #5596 Murphy Oil Usa Inc. | D21: 0 | E21: 11.9 | G21: 223.12 | H21: 0 | J21: 357
A22: 63-0195 | B22: GS | C22: Murphy Usa #6776 | D22: 0 | E22: 18.7 | G22: 350.62 | H22: 0 | J22: 561
A23: 63-0199 | B23: GS | C23: Sam's Club # 6512 | D23: 0 | E23: 12.89 | G23: 241.69 | H23: 0 | J23: 386.7
A24: 63-0249 | B24: GS | C24: Mapco Express #7414 | D24: 0 | E24: 20.93 | G24: 392.44 | H24: 0 | J24: 627.9
A25: 63-0321 | B25: GS | C25: Mapco Express Inc. dba Mapco Mart 7523 | D25: 0 | E25: 16.74 | G25: 313.88 | H25: 0 | J25: 502.2
A26: 63-0324 | B26: GS | C26: Wal-Mart Stores East, LP dba Walmart Neighborhood Market 4591 | D26: 0 | E26: 14.5 | G26: 271.88 | H26: 0 | J26: 435
A27: 74-0448 | B27: GS | C27: Murphy USA #7518 | D27: 0 | E27: 13.95 | G27: 261.56 | H27: 0 | J27: 418.5
A28: 75-0330 | B28: GS | C28: Mapco Express #3305 | D28: 0 | E28: 11.27 | G28: 211.31 | H28: 0 | J28: 338.1
A29: 76-0094 | B29: GS | C29: Murphy Express #8539 | D29: 0 | E29: 13.95 | G29: 261.56 | H29: 0 | J29: 418.5
A30: 78-0215 | B30: GS | C30: Murphy Express #8562 | D30: 0 | E30: 13.95 | G30: 261.56 | H30: 0 | J30: 418.5
A31: 78-0218 | B31: GS | C31: Weigel's 69 | D31: 0 | E31: 30.7 | G31: 575.62 | H31: 0 | J31: 921
A32: 80-0075 | B32: GS | C32: WilcoHess Station 42202 | D32: 0 | E32: 12.95 | G32: 242.81 | H32: 0 | J32: 388.5
A33: 82-0442 | B33: GS | C33: Murphy Express #8651 Murphy Oil USA, Inc. | D33: 0 | E33: 14 | G33: 262.5 | H33: 0 | J33: 420
A34: 83-0255 | B34: GS | C34: Mapco Express, Inc. dba Mapco Express #7525 | D34: 0 | E34: 16.74 | G34: 313.88 | H34: 0 | J34: 502.2
A35: 90-0410 | B35: GS | C35: Quality Oil Company LLC dba Boones Creek Quality Plus | D35: 0 | E35: 13.95 | G35: 261.56 | H35: 0 | J35: 418.5
A36: 90-0416 | B36: GS | C36: Kroger Limited Partnership 1 dba Kroger Fuel Center R-261 | D36: 0 | E36: 13.27 | G36: 248.81 | H36: 0 | J36: 398.1
A37: 94-0343 | B37: GS | C37: Mapco Express #7507 | D37: 0 | E37: 20.93 | G37: 392.44 | H37: 0 | J37: 627.9
A38: 94-0355 | B38: GS | C38: Murphy Oil USA Inc. dba Murphy Express 8700 | D38: 0 | E38: 24.65 | G38: 462.19 | H38: 0 | J38: 739.5
A39: 95-0180 | B39: GS | C39: Mapco Express, Inc. dba Mapco Express #3064 | D39: 0 | E39: 20.33 | G39: 381.19 | H39: 0 | J39: 609.9
A40: 95-0217 | B40: GS | C40: Mapco Express #3341 | D40: 0 | E40: 20.93 | G40: 392.44 | H40: 0 | J40: 627.9
A41: 95-0331 | B41: GS | C41: Murphy Oil USA, Inc. dba Murphy Express 8708 | D41: 0 | E41: 24.65 | G41: 462.19 | H41: 0 | J41: 739.5

Sheet FeeOptions (hidden)
F1: from #CPs | H1: Currrent | I1: Explore
A2: Construction Permit Emission Rate Fee | B2: Emission Rate | C2: tons | D2: $ rate | E2: $ rate | F2: AVG#/Yr | H2: Fees | I2: Fees
B3: 0 <= tons < 10 | C3: 10 | D3: 100 | E3: 1000 | F3: 172 | H3: =IF(F3<>"",D3*F3,"") -> 17200 | I3: =IF(F3<>"",E3*F3,"") -> 172000
B4: 10 <= tons < 100 | C4: 100 | D4: 500 | E4: 1500 | F4: 97 | H4: =IF(F4<>"",D4*F4,"") -> 48500 | I4: =IF(F4<>"",E4*F4,"") -> 145500
B5: 100 <= tons < 250 | C5: 250 | D5: 1000 | E5: 2000 | F5: 10 | H5: 10000 | I5: 20000
B6: 250 <= tons < 500 | C6: 500 | D6: 2000 | E6: 2500 | F6: 1 | H6: 2000 | I6: 2500
B7: 500 <= tons < 1000 | C7: 1000 | D7: 3000 | E7: 3000 | F7: 0 | H7: 0 | I7: 0
B8: 1000 <= tons < 5000 | C8: 5000 | D8: 4000 | E8: 4000 | F8: 0 | H8: 0 | I8: 0
B9: tons >= 5000 | D9: 5000 | E9: 5000 | F9: 0 | H9: 0 | I9: 0
B28: Totals--> | F28: =SUM(F3:F27) -> 280 | H28: =SUM(H3:H27) -> 77700 | I28: =SUM(I3:I27) -> 340000
D31: Current | E31: Exploratory | H31: Currrent | I31: Explore | N31: Current | O31: Exploratory | R31: Currrent | S31: Explore | X31: Current | Y31: Exploratory | AB31: Currrent | AC31: Explore | AH31: Current | AI31: Exploratory | AL31: Currrent | AM31: Explore
A32: Annual Emission Fees $/ton rates | B32: Emission Rate | C32: tons | D32: $/Ton | E32: $/Ton | F32: #Fac's | G32: Total Tons | H32: Fees | I32: Fees | K32: Annual Emission Fees $/ton rates | L32: Emission Rate | M32: tons | N32: $/Ton | O32: $/Ton | P32: #Fac's | Q32: Total Tons | R32: Fees | S32: Fees | U32: Annual Emission Fees $/ton rates | V32: Emission Rate | W32: tons | X32: $/Ton | Y32: $/Ton | Z32: #Fac's | AA32: Total Tons | AB32: Fees | AC32: Fees | AE32: Annual Emission Fees $/ton rates | AF32: Emission Rate | AG32: tons | AH32: $/Ton | AI32: $/Ton | AJ32: #Fac's | AK32: Total Tons | AL32: Fees | AM32: Fees
B33: 0 <= tons < 25 | C33: 25 | D33: 18.75 | E33: 18.75 | F33: 278 | G33: 4626.636719 | H33: =IF(G33<>"",D33*G33,"") -> 86749.43848 | I33: =IF(G33<>"",E33*G33,"") -> 86749.43848 | L33: 0 <= tons < 25 | M33: 25 | N33: 18.75 | O33: 18.75 | P33: 278 | Q33: 4626.636719 | R33: =IF(Q33<>"",N33*Q33,"") -> 86749.43848 | S33: =IF(Q33<>"",O33*Q33,"") -> 86749.43848 | V33: 0 <= tons < 50 | W33: 50 | X33: 18.75 | Y33: 18.75 | Z33: 541 | AA33: 14440.2627 | AB33: =IF(AA33<>"",X33*AA33,"") -> 270754.9255 | AC33: =IF(AA33<>"",Y33*AA33,"") -> 270754.9255 | AF33: 0 <= tons < 10 | AG33: 10 | AH33: 18.75 | AI33: 18.75 | AJ33: 6 | AK33: 59.54000092 | AL33: =IF(AK33<>"",AH33*AK33,"") -> 1116.375017 | AM33: =IF(AK33<>"",AI33*AK33,"") -> 1116.375017
B34: 25 <= tons < 50 | C34: 50 | D34: 18.75 | E34: 18.75 | F34: 263 | G34: 9813.628906 | H34: 184005.542 | I34: 184005.542 | L34: 25 <= tons < 50 | M34: 50 | N34: 18.75 | O34: 18.75 | P34: 263 | Q34: 9813.628906 | R34: 184005.542 | S34: 184005.542 | V34: 50 <= tons < 100 | W34: 100 | X34: 18.75 | Y34: 18.75 | Z34: 341 | AA34: 24855.76758 | AB34: 466045.6421 | AC34: 466045.6421 | AF34: 10 <= tons < 100 | AG34: 100 | AH34: 18.75 | AI34: 18.75 | AJ34: 876 | AK34: 39236.49609 | AL34: =IF(AK34<>"",AH34*AK34,"") -> 735684.3018 | AM34: =IF(AK34<>"",AI34*AK34,"") -> 735684.3018
B35: 50 <= tons < 75 | C35: 75 | D35: 18.75 | E35: 18.75 | F35: 187 | G35: 11388.42969 | H35: 213533.0566 | I35: 213533.0566 | L35: 50 <= tons < 75 | M35: 75 | N35: 18.75 | O35: 18.75 | P35: 187 | Q35: 11388.42969 | R35: 213533.0566 | S35: 213533.0566 | V35: 100 <= tons < 150 | W35: 150 | X35: 18.75 | Y35: 18.75 | Z35: 161 | AA35: 19433.66211 | AB35: 364381.1646 | AC35: 364381.1646 | AF35: 100 <= tons < 250 | AG35: 250 | AH35: 18.75 | AI35: 18.75 | AJ35: 263 | AK35: 38353.24219 | AL35: 719123.291 | AM35: 719123.291
B36: 75 <= tons < 100 | C36: 100 | D36: 18.75 | E36: 18.75 | F36: 154 | G36: 13467.32812 | H36: 252512.4023 | I36: 252512.4023 | L36: 75 <= tons < 100 | M36: 100 | N36: 18.75 | O36: 18.75 | P36: 154 | Q36: 13467.32812 | R36: 252512.4023 | S36: 252512.4023 | V36: 150 <= tons < 200 | W36: 200 | X36: 18.75 | Y36: 18.75 | Z36: 69 | AA36: 11695.7041 | AB36: 219294.4519 | AC36: 219294.4519 | AF36: 250 <= tons < 500 | AG36: 500 | AH36: 18.75 | AI36: 18.75 | AJ36: 30 | AK36: 9413.591797 | AL36: 176504.8462 | AM36: 176504.8462
B37: 100 <= tons < 125 | C37: 125 | D37: 18.75 | E37: 18.75 | F37: 102 | G37: 11411.1875 | H37: 213959.7656 | I37: 213959.7656 | L37: 100 <= tons < 125 | M37: 125 | N37: 18.75 | O37: 18.75 | P37: 102 | Q37: 11411.1875 | R37: 213959.7656 | S37: 213959.7656 | V37: 200 <= tons < 250 | W37: 250 | X37: 18.75 | Y37: 18.75 | Z37: 33 | AA37: 7223.877441 | AB37: 135447.702 | AC37: 135447.702 | AF37: 500 <= tons < 1000 | AG37: 1000 | AH37: 18.75 | AI37: 18.75 | AJ37: 1 | AK37: 511.5499878 | AL37: 9591.562271 | AM37: 9591.562271
B38: 125 <= tons < 150 | C38: 150 | D38: 18.75 | E38: 18.75 | F38: 59 | G38: 8022.473145 | H38: 150421.3715 | I38: 150421.3715 | L38: 125 <= tons < 150 | M38: 150 | N38: 18.75 | O38: 18.75 | P38: 59 | Q38: 8022.473145 | R38: 150421.3715 | S38: 150421.3715 | V38: tons >= 250 | X38: 18.75 | Y38: 18.75 | Z38: 32 | AA38: 11106.99121 | AB38: 208256.0852 | AC38: 208256.0852 | AF38: 1000 <= tons < 5000 | AG38: 5000 | AH38: 18.75 | AI38: 18.75 | AJ38: 1 | AK38: 1181.849976 | AL38: 22159.68704 | AM38: 22159.68704
B39: 150 <= tons < 175 | C39: 175 | D39: 18.75 | E39: 18.75 | F39: 48 | G39: 7757.629395 | H39: 145455.5511 | I39: 145455.5511 | L39: 150 <= tons < 175 | M39: 175 | N39: 18.75 | O39: 18.75 | P39: 48 | Q39: 7757.629395 | R39: 145455.5511 | S39: 145455.5511 | AF39: tons >= 5000 | AH39: 18.75 | AI39: 18.75 | AJ39: 0 | AK39: 0 | AL39: 0 | AM39: 0
B40: 175 <= tons < 200 | C40: 200 | D40: 18.75 | E40: 18.75 | F40: 21 | G40: 3938.074463 | H40: 73838.89618 | I40: 73838.89618 | L40: 175 <= tons < 200 | M40: 200 | N40: 18.75 | O40: 18.75 | P40: 21 | Q40: 3938.074463 | R40: 73838.89618 | S40: 73838.89618
B41: 200 <= tons < 225 | C41: 225 | D41: 18.75 | E41: 18.75 | F41: 24 | G41: 5062.604004 | H41: 94923.82507 | I41: 94923.82507 | L41: 200 <= tons < 225 | M41: 225 | N41: 18.75 | O41: 18.75 | P41: 24 | Q41: 5062.604004 | R41: 94923.82507 | S41: 94923.82507
B42: 225 <= tons < 250 | C42: 250 | D42: 18.75 | E42: 18.75 | F42: 9 | G42: 2161.272949 | H42: 40523.8678 | I42: 40523.8678 | L42: 225 <= tons < 250 | M42: 250 | N42: 18.75 | O42: 18.75 | P42: 9 | Q42: 2161.272949 | R42: 40523.8678 | S42: 40523.8678
B43: 250 <= tons < 500 | C43: 500 | D43: 18.75 | E43: 18.75 | F43: 30 | G43: 9413.591797 | H43: 176504.8462 | I43: 176504.8462 | L43: tons >= 250 | N43: 18.75 | O43: 18.75 | P43: 32 | Q43: 11106.99121 | R43: 208256.0852 | S43: 208256.0852
B44: 500 <= tons < 1000 | C44: 1000 | D44: 18.75 | E44: 18.75 | F44: 1 | G44: 511.5499878 | H44: 9591.562271 | I44: 9591.562271
B45: 1000 <= tons < 2500 | C45: 2500 | D45: 18.75 | E45: 18.75 | F45: 1 | G45: 1181.849976 | H45: 22159.68704 | I45: 22159.68704
B46: 2500 <= tons < 5000 | C46: 5000 | D46: 18.75 | E46: 18.75 | F46: 0 | G46: 0 | H46: 0 | I46: 0
B47: tons >= 5000 | D47: 18.75 | E47: 18.75 | F47: 0 | G47: 0 | H47: 0 | I47: 0
B58: Totals--> | F58: =SUM(F33:F57) -> 1177 | G58: =SUM(G33:G57) -> 88756.25665 | H58: =SUM(H33:H57) -> 1664179.812 | I58: =SUM(I33:I57) -> 1664179.812 | L58: Totals--> | P58: =SUM(P33:P57) -> 1177 | Q58: =SUM(Q33:Q57) -> 88756.2561 | R58: =SUM(R33:R57) -> 1664179.802 | S58: =SUM(S33:S57) -> 1664179.802 | V58: Totals--> | Z58: =SUM(Z33:Z57) -> 1177 | AA58: =SUM(AA33:AA57) -> 88756.26514 | AB58: =SUM(AB33:AB57) -> 1664179.971 | AC58: =SUM(AC33:AC57) -> 1664179.971 | AF58: Totals--> | AJ58: =SUM(AJ33:AJ57) -> 1177 | AK58: =SUM(AK33:AK57) -> 88756.27004 | AL58: =SUM(AL33:AL57) -> 1664180.063 | AM58: =SUM(AM33:AM57) -> 1664180.063
D61: Current | E61: Exploratory | H61: Current | I61: Exploratory | N61: Current | O61: Exploratory | R61: Current | S61: Exploratory | X61: Current | Y61: Exploratory | AB61: Currrent | AC61: Explore
A62: Annual True Minor (TM) Base Fee | B62: Emission Rate | C62: tons | D62: $ rate | E62: $ rate | F62: #Fac's | H62: Fees | I62: Fees | K62: Annual True Minor (TM) Base Fee | L62: Emission Rate | M62: tons | N62: $ rate | O62: $ rate | P62: #Fac's | R62: Fees | S62: Fees | U62: Annual True Minor (TM) Base Fee | V62: Emission Rate | W62: tons | X62: $/Ton | Y62: $/Ton | Z62: #Fac's | AB62: Fees | AC62: Fees
B63: 0 <= tons < 25 | C63: 25 | D63: 0 | E63: 500 | F63: 256 | H63: =IF(F63<>"",D63*F63,"") -> 0 | I63: =IF(F63<>"",E63*F63,"") -> 128000 | L63: 0 <= tons < 25 | M63: 25 | N63: 0 | O63: 500 | P63: 256 | R63: =IF(P63<>"",N63*P63,"") -> 0 | S63: =IF(P63<>"",O63*P63,"") -> 128000 | V63: 0 <= tons < 50 | W63: 50 | X63: 0 | Y63: 500 | Z63: 480 | AB63: =IF(Z63<>"",X63*Z63,"") -> 0 | AC63: =IF(Z63<>"",Y63*Z63,"") -> 240000
B64: 25 <= tons < 50 | C64: 50 | D64: 0 | E64: 550 | F64: 224 | H64: 0 | I64: 123200 | L64: 25 <= tons < 50 | M64: 50 | N64: 0 | O64: 550 | P64: 224 | R64: 0 | S64: 123200 | V64: 50 <= tons < 100 | W64: 100 | X64: 0 | Y64: 700 | Z64: 253 | AB64: 0 | AC64: 177100
B65: 50 <= tons < 75 | C65: 75 | D65: 0 | E65: 600 | F65: 148 | H65: 0 | I65: 88800 | L65: 50 <= tons < 75 | M65: 75 | N65: 0 | O65: 600 | P65: 148 | R65: 0 | S65: 88800 | V65: 100 <= tons < 150 | W65: 150 | X65: 0 | Y65: 900 | Z65: 83 | AB65: 0 | AC65: 74700
B66: 75 <= tons < 100 | C66: 100 | D66: 0 | E66: 650 | F66: 105 | H66: 0 | I66: 68250 | L66: 75 <= tons < 100 | M66: 100 | N66: 0 | O66: 650 | P66: 105 | R66: 0 | S66: 68250 | V66: 150 <= tons < 200 | W66: 200 | X66: 0 | Y66: 1100 | Z66: 29 | AB66: 0 | AC66: 31900
B67: 100 <= tons < 125 | C67: 125 | D67: 0 | E67: 700 | F67: 57 | H67: 0 | I67: 39900 | L67: 100 <= tons < 125 | M67: 125 | N67: 0 | O67: 700 | P67: 57 | R67: 0 | S67: 39900 | V67: 200 <= tons < 250 | W67: 250 | X67: 0 | Y67: 1300 | Z67: 11 | AB67: 0 | AC67: 14300
B68: 125 <= tons < 150 | C68: 150 | D68: 0 | E68: 750 | F68: 26 | H68: 0 | I68: 19500 | L68: 125 <= tons < 150 | M68: 150 | N68: 0 | O68: 750 | P68: 26 | R68: 0 | S68: 19500 | V68: tons >= 250 | X68: 0 | Y68: 1500 | Z68: 6 | AB68: 0 | AC68: 9000
B69: 150 <= tons < 175 | C69: 175 | D69: 0 | E69: 800 | F69: 20 | H69: 0 | I69: 16000 | L69: 150 <= tons < 175 | M69: 175 | N69: 0 | O69: 800 | P69: 20 | R69: 0 | S69: 16000
B70: 175 <= tons < 200 | C70: 200 | D70: 0 | E70: 850 | F70: 9 | H70: 0 | I70: 7650 | L70: 175 <= tons < 200 | M70: 200 | N70: 0 | O70: 850 | P70: 9 | R70: 0 | S70: 7650
B71: 200 <= tons < 225 | C71: 225 | D71: 0 | E71: 900 | F71: 8 | H71: 0 | I71: 7200 | L71: 200 <= tons < 225 | M71: 225 | N71: 0 | O71: 900 | P71: 8 | R71: 0 | S71: 7200
B72: 225 <= tons < 250 | C72: 250 | D72: 0 | E72: 950 | F72: 3 | H72: 0 | I72: 2850 | L72: 225 <= tons < 250 | M72: 250 | N72: 0 | O72: 950 | P72: 3 | R72: 0 | S72: 2850
B73: 250 <= tons < 500 | C73: 500 | D73: 0 | E73: 1000 | F73: 5 | H73: 0 | I73: 5000 | L73: tons >= 250 | N73: 0 | O73: 1000 | P73: 6 | R73: 0 | S73: 6000
B74: 500 <= tons < 1000 | C74: 1000 | D74: 0 | E74: 1500 | F74: 0 | H74: 0 | I74: 0
B75: 1000 <= tons < 2500 | C75: 2500 | D75: 0 | E75: 2000 | F75: 1 | H75: 0 | I75: 2000
B76: 2500 <= tons < 5000 | C76: 5000 | D76: 0 | E76: 2500 | F76: 0 | H76: 0 | I76: 0
B77: tons >= 5000 | D77: 0 | E77: 3000 | F77: 0 | H77: 0 | I77: 0
B88: Totals--> | F88: =SUM(F63:F87) -> 862 | H88: =SUM(H63:H87) -> 0 | I88: =SUM(I63:I87) -> 508350 | L88: Totals--> | P88: =SUM(P63:P87) -> 862 | R88: =SUM(R63:R87) -> 0 | S88: =SUM(S63:S87) -> 507350 | V88: Totals--> | Z88: =SUM(Z63:Z87) -> 862 | AB88: =SUM(AB63:AB87) -> 0 | AC88: =SUM(AC63:AC87) -> 547000
D91: Current | E91: Exploratory | H91: Currrent | I91: Explore | N91: Current | O91: Exploratory | R91: Currrent | S91: Explore | X91: Current | Y91: Exploratory | AB91: Currrent | AC91: Explore | AH91: Current | AI91: Exploratory | AL91: Current | AM91: Exploratory
A92: Annual Conditional Major (CM) Review Fee | B92: Emission Rate | C92: tons | D92: $/Ton | E92: $/Ton | F92: #Fac's | H92: Fees | I92: Fees | K92: Annual Conditional Major (CM) Review Fee | L92: Emission Rate | M92: tons | N92: $/Ton | O92: $/Ton | P92: #Fac's | R92: Fees | S92: Fees | U92: Annual Conditional Major (CM) Review Fee | V92: Emission Rate | W92: tons | X92: $/Ton | Y92: $/Ton | Z92: #Fac's | AB92: Fees | AC92: Fees | AE92: Annual Conditional Major (CM) Review Fee | AF92: Emission Rate | AG92: tons | AH92: $ rate | AI92: $ rate | AJ92: # Fac's | AL92: Fees | AM92: Fees
B93: 0 <= tons < 25 | C93: 25 | D93: 250 | E93: 1000 | F93: 10 | H93: =IF(F93<>"",D93*F93,"") -> 2500 | I93: =IF(F93<>"",E93*F93,"") -> 10000 | L93: 0 <= tons < 50 | M93: 50 | N93: 250 | O93: 500 | P93: 37 | R93: =IF(P93<>"",N93*P93,"") -> 9250 | S93: =IF(P93<>"",O93*P93,"") -> 18500 | V93: 0 <= tons < 50 | W93: 50 | X93: 250 | Y93: 500 | Z93: 37 | AB93: =IF(Z93<>"",X93*Z93,"") -> 9250 | AC93: =IF(Z93<>"",Y93*Z93,"") -> 18500 | AF93: 0 <= tons < 50.1 | AG93: 50.1 | AH93: 250 | AI93: 1000 | AJ93: 38 | AL93: =IF(AJ93<>"",AH93*AJ93,"") -> 9500 | AM93: =IF(AJ93<>"",AI93*AJ93,"") -> 38000
B94: 25 <= tons < 50 | C94: 50 | D94: 250 | E94: 1250 | F94: 27 | H94: 6750 | I94: 33750 | L94: 50 <= tons < 75 | M94: 75 | N94: 250 | O94: 1000 | P94: 35 | R94: 8750 | S94: 35000 | V94: 50 <= tons < 100 | W94: 100 | X94: 500 | Y94: 1000 | Z94: 78 | AB94: 39000 | AC94: 78000 | AF94: 50.1 <= tons < 100.1 | AG94: 100.1 | AH94: 500 | AI94: 2000 | AJ94: 77 | AL94: 38500 | AM94: 154000
B95: 50 <= tons < 75 | C95: 75 | D95: 500 | E95: 1500 | F95: 35 | H95: 17500 | I95: 52500 | L95: 75 <= tons < 100 | M95: 100 | N95: 500 | O95: 1500 | P95: 43 | R95: 21500 | S95: 64500 | V95: 100 <= tons < 150 | W95: 150 | X95: 500 | Y95: 2000 | Z95: 81 | AB95: 40500 | AC95: 162000 | AF95: 100.1 <= tons < 250.1 | AG95: 250.1 | AH95: 1000 | AI95: 2500 | AJ95: 152 | AL95: 152000 | AM95: 380000
B96: 75 <= tons < 100 | C96: 100 | D96: 500 | E96: 1750 | F96: 43 | H96: 21500 | I96: 75250 | L96: 100 <= tons < 125 | M96: 125 | N96: 500 | O96: 2000 | P96: 47 | R96: 23500 | S96: 94000 | V96: 150 <= tons < 200 | W96: 200 | X96: 500 | Y96: 3000 | Z96: 44 | AB96: 22000 | AC96: 132000 | AF96: tons >= 250.1 | AH96: 2000 | AI96: 3000 | AJ96: 48 | AL96: 96000 | AM96: 144000
B97: 100 <= tons < 125 | C97: 125 | D97: 500 | E97: 2000 | F97: 47 | H97: 23500 | I97: 94000 | L97: 125 <= tons < 150 | M97: 150 | N97: 500 | O97: 2500 | P97: 34 | R97: 17000 | S97: 85000 | V97: 200 <= tons < 250 | W97: 250 | X97: 1000 | Y97: 4000 | Z97: 27 | AB97: 27000 | AC97: 108000
B98: 125 <= tons < 150 | C98: 150 | D98: 500 | E98: 2250 | F98: 34 | H98: 17000 | I98: 76500 | L98: 150 <= tons < 200 | M98: 200 | N98: 500 | O98: 3000 | P98: 44 | R98: 22000 | S98: 132000 | V98: tons >= 250 | X98: 2000 | Y98: 4500 | Z98: 48 | AB98: 96000 | AC98: 216000
B99: 150 <= tons < 175 | C99: 175 | D99: 500 | E99: 2500 | F99: 27 | H99: 13500 | I99: 67500 | L99: 200 <= tons < 250 | M99: 250 | N99: 500 | O99: 3500 | P99: 27 | R99: 13500 | S99: 94500
B100: 175 <= tons < 200 | C100: 200 | D100: 2000 | E100: 2750 | F100: 17 | H100: 34000 | I100: 46750 | L100: 250 <= tons < 500 | M100: 500 | N100: 2000 | O100: 4000 | P100: 45 | R100: 90000 | S100: 180000
B101: 200 <= tons < 225 | C101: 225 | D101: 2000 | E101: 3000 | F101: 19 | H101: 38000 | I101: 57000 | L101: 500 <= tons < 1000 | M101: 1000 | N101: 2000 | O101: 4500 | P101: 3 | R101: 6000 | S101: 13500
B102: 225 <= tons < 250 | C102: 250 | D102: 2000 | E102: 3250 | F102: 8 | H102: 16000 | I102: 26000 | L102: tons >= 1000 | M102: 5000 | N102: 2000 | O102: 5000 | P102: 0 | R102: 0 | S102: 0
B103: 250 <= tons < 500 | C103: 500 | D103: 2000 | E103: 3500 | F103: 45 | H103: 90000 | I103: 157500
B104: 500 <= tons < 1000 | C104: 1000 | D104: 2000 | E104: 3750 | F104: 3 | H104: 6000 | I104: 11250
B105: 1000 <= tons < 2500 | C105: 2500 | D105: 2000 | E105: 4000 | F105: 0 | H105: 0 | I105: 0
B106: 2500 <= tons < 5000 | C106: 5000 | D106: 2000 | E106: 4500 | F106: 0 | H106: 0 | I106: 0
B107: tons >= 5000 | D107: 2000 | E107: 5000 | F107: 0 | H107: 0 | I107: 0
B118: Totals--> | F118: =SUM(F93:F117) -> 315 | H118: =SUM(H93:H117) -> 286250 | I118: =SUM(I93:I117) -> 708000 | L118: Totals--> | P118: =SUM(P93:P117) -> 315 | R118: =SUM(R93:R117) -> 211500 | S118: =SUM(S93:S117) -> 717000 | V118: Totals--> | Z118: =SUM(Z93:Z117) -> 315 | AB118: =SUM(AB93:AB117) -> 233750 | AC118: =SUM(AC93:AC117) -> 714500 | AF118: Totals--> | AJ118: =SUM(AJ93:AJ117) -> 315 | AL118: =SUM(AL93:AL117) -> 296000 | AM118: =SUM(AM93:AM117) -> 716000

Sheet copyFeeOptions (hidden)
F1: from #CPs | H1: Currrent | I1: Explore
A2: Construction Permit Emission Rate Fee | B2: Emission Rate | C2: tons | D2: $ rate | E2: $ rate | F2: AVG#/Yr | H2: Fees | I2: Fees
B3: 0 <= tons < 10 | C3: 10 | D3: 100 | E3: 1000 | F3: 172 | H3: =IF(F3<>"",D3*F3,"") -> 17200 | I3: =IF(F3<>"",E3*F3,"") -> 172000
B4: 10 <= tons < 100 | C4: 100 | D4: 500 | E4: 1500 | F4: 97 | H4: =IF(F4<>"",D4*F4,"") -> 48500 | I4: =IF(F4<>"",E4*F4,"") -> 145500
B5: 100 <= tons < 250 | C5: 250 | D5: 1000 | E5: 2000 | F5: 10 | H5: 10000 | I5: 20000
B6: 250 <= tons < 500 | C6: 500 | D6: 2000 | E6: 2500 | F6: 1 | H6: 2000 | I6: 2500
B7: 500 <= tons < 1000 | C7: 1000 | D7: 3000 | E7: 3000 | F7: 0 | H7: 0 | I7: 0
B8: 1000 <= tons < 5000 | C8: 5000 | D8: 4000 | E8: 4000 | F8: 0 | H8: 0 | I8: 0
B9: tons >= 5000 | D9: 5000 | E9: 5000 | F9: 0 | H9: 0 | I9: 0
B28: Totals--> | F28: =SUM(F3:F27) -> 280 | H28: =SUM(H3:H27) -> 77700 | I28: =SUM(I3:I27) -> 340000
D31: Current | E31: Exploratory | H31: Currrent | I31: Explore | N31: Current | O31: Exploratory | R31: Currrent | S31: Explore | X31: Current | Y31: Exploratory | AB31: Currrent | AC31: Explore | AH31: Current | AI31: Exploratory | AL31: Currrent | AM31: Explore
A32: Annual Emission Fees $/ton rates | B32: Emission Rate | C32: tons | D32: $/Ton | E32: $/Ton | F32: #Fac's | G32: Total Tons | H32: Fees | I32: Fees | K32: Annual Emission Fees $/ton rates | L32: Emission Rate | M32: tons | N32: $/Ton | O32: $/Ton | P32: #Fac's | Q32: Total Tons | R32: Fees | S32: Fees | U32: Annual Emission Fees $/ton rates | V32: Emission Rate | W32: tons | X32: $/Ton | Y32: $/Ton | Z32: #Fac's | AA32: Total Tons | AB32: Fees | AC32: Fees | AE32: Annual Emission Fees $/ton rates | AF32: Emission Rate | AG32: tons | AH32: $/Ton | AI32: $/Ton | AJ32: #Fac's | AK32: Total Tons | AL32: Fees | AM32: Fees
B33: 0 <= tons < 25 | C33: 25 | D33: 18.75 | E33: 18.75 | F33: 278 | G33: 4626.636719 | H33: =IF(G33<>"",D33*G33,"") -> 86749.43848 | I33: =IF(G33<>"",E33*G33,"") -> 86749.43848 | L33: 0 <= tons < 25 | M33: 25 | N33: 18.75 | O33: 18.75 | P33: 278 | Q33: 4626.636719 | R33: =IF(Q33<>"",N33*Q33,"") -> 86749.43848 | S33: =IF(Q33<>"",O33*Q33,"") -> 86749.43848 | V33: 0 <= tons < 50 | W33: 50 | X33: 18.75 | Y33: 18.75 | Z33: 541 | AA33: 14440.2627 | AB33: =IF(AA33<>"",X33*AA33,"") -> 270754.9255 | AC33: =IF(AA33<>"",Y33*AA33,"") -> 270754.9255 | AF33: 0 <= tons < 10 | AG33: 10 | AH33: 18.75 | AI33: 18.75 | AJ33: 6 | AK33: 59.54000092 | AL33: =IF(AK33<>"",AH33*AK33,"") -> 1116.375017 | AM33: =IF(AK33<>"",AI33*AK33,"") -> 1116.375017
B34: 25 <= tons < 50 | C34: 50 | D34: 18.75 | E34: 18.75 | F34: 263 | G34: 9813.628906 | H34: 184005.542 | I34: 184005.542 | L34: 25 <= tons < 50 | M34: 50 | N34: 18.75 | O34: 18.75 | P34: 263 | Q34: 9813.628906 | R34: 184005.542 | S34: 184005.542 | V34: 50 <= tons < 100 | W34: 100 | X34: 18.75 | Y34: 18.75 | Z34: 341 | AA34: 24855.76758 | AB34: 466045.6421 | AC34: 466045.6421 | AF34: 10 <= tons < 100 | AG34: 100 | AH34: 18.75 | AI34: 18.75 | AJ34: 876 | AK34: 39236.49609 | AL34: =IF(AK34<>"",AH34*AK34,"") -> 735684.3018 | AM34: =IF(AK34<>"",AI34*AK34,"") -> 735684.3018
B35: 50 <= tons < 75 | C35: 75 | D35: 18.75 | E35: 18.75 | F35: 187 | G35: 11388.42969 | H35: 213533.0566 | I35: 213533.0566 | L35: 50 <= tons < 75 | M35: 75 | N35: 18.75 | O35: 18.75 | P35: 187 | Q35: 11388.42969 | R35: 213533.0566 | S35: 213533.0566 | V35: 100 <= tons < 150 | W35: 150 | X35: 18.75 | Y35: 18.75 | Z35: 161 | AA35: 19433.66211 | AB35: 364381.1646 | AC35: 364381.1646 | AF35: 100 <= tons < 250 | AG35: 250 | AH35: 18.75 | AI35: 18.75 | AJ35: 263 | AK35: 38353.24219 | AL35: 719123.291 | AM35: 719123.291
B36: 75 <= tons < 100 | C36: 100 | D36: 18.75 | E36: 18.75 | F36: 154 | G36: 13467.32812 | H36: 252512.4023 | I36: 252512.4023 | L36: 75 <= tons < 100 | M36: 100 | N36: 18.75 | O36: 18.75 | P36: 154 | Q36: 13467.32812 | R36: 252512.4023 | S36: 252512.4023 | V36: 150 <= tons < 200 | W36: 200 | X36: 18.75 | Y36: 18.75 | Z36: 69 | AA36: 11695.7041 | AB36: 219294.4519 | AC36: 219294.4519 | AF36: 250 <= tons < 500 | AG36: 500 | AH36: 18.75 | AI36: 18.75 | AJ36: 30 | AK36: 9413.591797 | AL36: 176504.8462 | AM36: 176504.8462
B37: 100 <= tons < 125 | C37: 125 | D37: 18.75 | E37: 18.75 | F37: 102 | G37: 11411.1875 | H37: 213959.7656 | I37: 213959.7656 | L37: 100 <= tons < 125 | M37: 125 | N37: 18.75 | O37: 18.75 | P37: 102 | Q37: 11411.1875 | R37: 213959.7656 | S37: 213959.7656 | V37: 200 <= tons < 250 | W37: 250 | X37: 18.75 | Y37: 18.75 | Z37: 33 | AA37: 7223.877441 | AB37: 135447.702 | AC37: 135447.702 | AF37: 500 <= tons < 1000 | AG37: 1000 | AH37: 18.75 | AI37: 18.75 | AJ37: 1 | AK37: 511.5499878 | AL37: 9591.562271 | AM37: 9591.562271
B38: 125 <= tons < 150 | C38: 150 | D38: 18.75 | E38: 18.75 | F38: 59 | G38: 8022.473145 | H38: 150421.3715 | I38: 150421.3715 | L38: 125 <= tons < 150 | M38: 150 | N38: 18.75 | O38: 18.75 | P38: 59 | Q38: 8022.473145 | R38: 150421.3715 | S38: 150421.3715 | V38: tons >= 250 | X38: 18.75 | Y38: 18.75 | Z38: 32 | AA38: 11106.99121 | AB38: 208256.0852 | AC38: 208256.0852 | AF38: 1000 <= tons < 5000 | AG38: 5000 | AH38: 18.75 | AI38: 18.75 | AJ38: 1 | AK38: 1181.849976 | AL38: 22159.68704 | AM38: 22159.68704
B39: 150 <= tons < 175 | C39: 175 | D39: 18.75 | E39: 18.75 | F39: 48 | G39: 7757.629395 | H39: 145455.5511 | I39: 145455.5511 | L39: 150 <= tons < 175 | M39: 175 | N39: 18.75 | O39: 18.75 | P39: 48 | Q39: 7757.629395 | R39: 145455.5511 | S39: 145455.5511 | AF39: tons >= 5000 | AH39: 18.75 | AI39: 18.75 | AJ39: 0 | AK39: 0 | AL39: 0 | AM39: 0
B40: 175 <= tons < 200 | C40: 200 | D40: 18.75 | E40: 18.75 | F40: 21 | G40: 3938.074463 | H40: 73838.89618 | I40: 73838.89618 | L40: 175 <= tons < 200 | M40: 200 | N40: 18.75 | O40: 18.75 | P40: 21 | Q40: 3938.074463 | R40: 73838.89618 | S40: 73838.89618
B41: 200 <= tons < 225 | C41: 225 | D41: 18.75 | E41: 18.75 | F41: 24 | G41: 5062.604004 | H41: 94923.82507 | I41: 94923.82507 | L41: 200 <= tons < 225 | M41: 225 | N41: 18.75 | O41: 18.75 | P41: 24 | Q41: 5062.604004 | R41: 94923.82507 | S41: 94923.82507
B42: 225 <= tons < 250 | C42: 250 | D42: 18.75 | E42: 18.75 | F42: 9 | G42: 2161.272949 | H42: 40523.8678 | I42: 40523.8678 | L42: 225 <= tons < 250 | M42: 250 | N42: 18.75 | O42: 18.75 | P42: 9 | Q42: 2161.272949 | R42: 40523.8678 | S42: 40523.8678
B43: 250 <= tons < 500 | C43: 500 | D43: 18.75 | E43: 18.75 | F43: 30 | G43: 9413.591797 | H43: 176504.8462 | I43: 176504.8462 | L43: tons >= 250 | N43: 18.75 | O43: 18.75 | P43: 32 | Q43: 11106.99121 | R43: 208256.0852 | S43: 208256.0852
B44: 500 <= tons < 1000 | C44: 1000 | D44: 18.75 | E44: 18.75 | F44: 1 | G44: 511.5499878 | H44: 9591.562271 | I44: 9591.562271
B45: 1000 <= tons < 2500 | C45: 2500 | D45: 18.75 | E45: 18.75 | F45: 1 | G45: 1181.849976 | H45: 22159.68704 | I45: 22159.68704
B46: 2500 <= tons < 5000 | C46: 5000 | D46: 18.75 | E46: 18.75 | F46: 0 | G46: 0 | H46: 0 | I46: 0
B47: tons >= 5000 | D47: 18.75 | E47: 18.75 | F47: 0 | G47: 0 | H47: 0 | I47: 0
B58: Totals--> | F58: =SUM(F33:F57) -> 1177 | G58: =SUM(G33:G57) -> 88756.25665 | H58: =SUM(H33:H57) -> 1664179.812 | I58: =SUM(I33:I57) -> 1664179.812 | L58: Totals--> | P58: =SUM(P33:P57) -> 1177 | Q58: =SUM(Q33:Q57) -> 88756.2561 | R58: =SUM(R33:R57) -> 1664179.802 | S58: =SUM(S33:S57) -> 1664179.802 | V58: Totals--> | Z58: =SUM(Z33:Z57) -> 1177 | AA58: =SUM(AA33:AA57) -> 88756.26514 | AB58: =SUM(AB33:AB57) -> 1664179.971 | AC58: =SUM(AC33:AC57) -> 1664179.971 | AF58: Totals--> | AJ58: =SUM(AJ33:AJ57) -> 1177 | AK58: =SUM(AK33:AK57) -> 88756.27004 | AL58: =SUM(AL33:AL57) -> 1664180.063 | AM58: =SUM(AM33:AM57) -> 1664180.063
D61: Current | E61: Exploratory | H61: Current | I61: Exploratory | N61: Current | O61: Exploratory | R61: Current | S61: Exploratory | X61: Current | Y61: Exploratory | AB61: Currrent | AC61: Explore
A62: Annual True Minor (TM) Base Fee | B62: Emission Rate | C62: tons | D62: $ rate | E62: $ rate | F62: #Fac's | H62: Fees | I62: Fees | K62: Annual True Minor (TM) Base Fee | L62: Emission Rate | M62: tons | N62: $ rate | O62: $ rate | P62: #Fac's | R62: Fees | S62: Fees | U62: Annual True Minor (TM) Base Fee | V62: Emission Rate | W62: tons | X62: $/Ton | Y62: $/Ton | Z62: #Fac's | AB62: Fees | AC62: Fees
B63: 0 <= tons < 25 | C63: 25 | D63: 0 | E63: 500 | F63: 256 | H63: =IF(F63<>"",D63*F63,"") -> 0 | I63: =IF(F63<>"",E63*F63,"") -> 128000 | L63: 0 <= tons < 25 | M63: 25 | N63: 0 | O63: 500 | P63: 256 | R63: =IF(P63<>"",N63*P63,"") -> 0 | S63: =IF(P63<>"",O63*P63,"") -> 128000 | V63: 0 <= tons < 50 | W63: 50 | X63: 0 | Y63: 500 | Z63: 480 | AB63: =IF(Z63<>"",X63*Z63,"") -> 0 | AC63: =IF(Z63<>"",Y63*Z63,"") -> 240000
B64: 25 <= tons < 50 | C64: 50 | D64: 0 | E64: 550 | F64: 224 | H64: 0 | I64: 123200 | L64: 25 <= tons < 50 | M64: 50 | N64: 0 | O64: 550 | P64: 224 | R64: 0 | S64: 123200 | V64: 50 <= tons < 100 | W64: 100 | X64: 0 | Y64: 700 | Z64: 253 | AB64: 0 | AC64: 177100
B65: 50 <= tons < 75 | C65: 75 | D65: 0 | E65: 600 | F65: 148 | H65: 0 | I65: 88800 | L65: 50 <= tons < 75 | M65: 75 | N65: 0 | O65: 600 | P65: 148 | R65: 0 | S65: 88800 | V65: 100 <= tons < 150 | W65: 150 | X65: 0 | Y65: 900 | Z65: 83 | AB65: 0 | AC65: 74700
B66: 75 <= tons < 100 | C66: 100 | D66: 0 | E66: 650 | F66: 105 | H66: 0 | I66: 68250 | L66: 75 <= tons < 100 | M66: 100 | N66: 0 | O66: 650 | P66: 105 | R66: 0 | S66: 68250 | V66: 150 <= tons < 200 | W66: 200 | X66: 0 | Y66: 1100 | Z66: 29 | AB66: 0 | AC66: 31900
B67: 100 <= tons < 125 | C67: 125 | D67: 0 | E67: 700 | F67: 57 | H67: 0 | I67: 39900 | L67: 100 <= tons < 125 | M67: 125 | N67: 0 | O67: 700 | P67: 57 | R67: 0 | S67: 39900 | V67: 200 <= tons < 250 | W67: 250 | X67: 0 | Y67: 1300 | Z67: 11 | AB67: 0 | AC67: 14300
B68: 125 <= tons < 150 | C68: 150 | D68: 0 | E68: 750 | F68: 26 | H68: 0 | I68: 19500 | L68: 125 <= tons < 150 | M68: 150 | N68: 0 | O68: 750 | P68: 26 | R68: 0 | S68: 19500 | V68: tons >= 250 | X68: 0 | Y68: 1500 | Z68: 6 | AB68: 0 | AC68: 9000
B69: 150 <= tons < 175 | C69: 175 | D69: 0 | E69: 800 | F69: 20 | H69: 0 | I69: 16000 | L69: 150 <= tons < 175 | M69: 175 | N69: 0 | O69: 800 | P69: 20 | R69: 0 | S69: 16000
B70: 175 <= tons < 200 | C70: 200 | D70: 0 | E70: 850 | F70: 9 | H70: 0 | I70: 7650 | L70: 175 <= tons < 200 | M70: 200 | N70: 0 | O70: 850 | P70: 9 | R70: 0 | S70: 7650
B71: 200 <= tons < 225 | C71: 225 | D71: 0 | E71: 900 | F71: 8 | H71: 0 | I71: 7200 | L71: 200 <= tons < 225 | M71: 225 | N71: 0 | O71: 900 | P71: 8 | R71: 0 | S71: 7200
B72: 225 <= tons < 250 | C72: 250 | D72: 0 | E72: 950 | F72: 3 | H72: 0 | I72: 2850 | L72: 225 <= tons < 250 | M72: 250 | N72: 0 | O72: 950 | P72: 3 | R72: 0 | S72: 2850
B73: 250 <= tons < 500 | C73: 500 | D73: 0 | E73: 1000 | F73: 5 | H73: 0 | I73: 5000 | L73: tons >= 250 | N73: 0 | O73: 1000 | P73: 6 | R73: 0 | S73: 6000
B74: 500 <= tons < 1000 | C74: 1000 | D74: 0 | E74: 1500 | F74: 0 | H74: 0 | I74: 0
B75: 1000 <= tons < 2500 | C75: 2500 | D75: 0 | E75: 2000 | F75: 1 | H75: 0 | I75: 2000
B76: 2500 <= tons < 5000 | C76: 5000 | D76: 0 | E76: 2500 | F76: 0 | H76: 0 | I76: 0
B77: tons >= 5000 | D77: 0 | E77: 3000 | F77: 0 | H77: 0 | I77: 0
B88: Totals--> | F88: =SUM(F63:F87) -> 862 | H88: =SUM(H63:H87) -> 0 | I88: =SUM(I63:I87) -> 508350 | L88: Totals--> | P88: =SUM(P63:P87) -> 862 | R88: =SUM(R63:R87) -> 0 | S88: =SUM(S63:S87) -> 507350 | V88: Totals--> | Z88: =SUM(Z63:Z87) -> 862 | AB88: =SUM(AB63:AB87) -> 0 | AC88: =SUM(AC63:AC87) -> 547000
D91: Current | E91: Exploratory | H91: Currrent | I91: Explore | N91: Current | O91: Exploratory | R91: Currrent | S91: Explore | X91: Current | Y91: Exploratory | AB91: Currrent | AC91: Explore | AH91: Current | AI91: Exploratory | AL91: Current | AM91: Exploratory
A92: Annual Conditional Major (CM) Review Fee | B92: Emission Rate | C92: tons | D92: $/Ton | E92: $/Ton | F92: #Fac's | H92: Fees | I92: Fees | K92: Annual Conditional Major (CM) Review Fee | L92: Emission Rate | M92: tons | N92: $/Ton | O92: $/Ton | P92: #Fac's | R92: Fees | S92: Fees | U92: Annual Conditional Major (CM) Review Fee | V92: Emission Rate | W92: tons | X92: $/Ton | Y92: $/Ton | Z92: #Fac's | AB92: Fees | AC92: Fees | AE92: Annual Conditional Major (CM) Review Fee | AF92: Emission Rate | AG92: tons | AH92: $ rate | AI92: $ rate | AJ92: # Fac's | AL92: Fees | AM92: Fees
B93: 0 <= tons < 25 | C93: 25 | D93: 250 | E93: 1000 | F93: 10 | H93: =IF(F93<>"",D93*F93,"") -> 2500 | I93: =IF(F93<>"",E93*F93,"") -> 10000 | L93: 0 <= tons < 50 | M93: 50 | N93: 250 | O93: 500 | P93: 37 | R93: =IF(P93<>"",N93*P93,"") -> 9250 | S93: =IF(P93<>"",O93*P93,"") -> 18500 | V93: 0 <= tons < 50 | W93: 50 | X93: 250 | Y93: 500 | Z93: 37 | AB93: =IF(Z93<>"",X93*Z93,"") -> 9250 | AC93: =IF(Z93<>"",Y93*Z93,"") -> 18500 | AF93: 0 <= tons < 50.1 | AG93: 50.1 | AH93: 250 | AI93: 1000 | AJ93: 38 | AL93: =IF(AJ93<>"",AH93*AJ93,"") -> 9500 | AM93: =IF(AJ93<>"",AI93*AJ93,"") -> 38000
B94: 25 <= tons < 50 | C94: 50 | D94: 250 | E94: 1250 | F94: 27 | H94: 6750 | I94: 33750 | L94: 50 <= tons < 75 | M94: 75 | N94: 250 | O94: 1000 | P94: 35 | R94: 8750 | S94: 35000 | V94: 50 <= tons < 100 | W94: 100 | X94: 500 | Y94: 1000 | Z94: 78 | AB94: 39000 | AC94: 78000 | AF94: 50.1 <= tons < 100.1 | AG94: 100.1 | AH94: 500 | AI94: 2000 | AJ94: 77 | AL94: 38500 | AM94: 154000
B95: 50 <= tons < 75 | C95: 75 | D95: 500 | E95: 1500 | F95: 35 | H95: 17500 | I95: 52500 | L95: 75 <= tons < 100 | M95: 100 | N95: 500 | O95: 1500 | P95: 43 | R95: 21500 | S95: 64500 | V95: 100 <= tons < 150 | W95: 150 | X95: 500 | Y95: 2000 | Z95: 81 | AB95: 40500 | AC95: 162000 | AF95: 100.1 <= tons < 250.1 | AG95: 250.1 | AH95: 1000 | AI95: 2500 | AJ95: 152 | AL95: 152000 | AM95: 380000
B96: 75 <= tons < 100 | C96: 100 | D96: 500 | E96: 1750 | F96: 43 | H96: 21500 | I96: 75250 | L96: 100 <= tons < 125 | M96: 125 | N96: 500 | O96: 2000 | P96: 47 | R96: 23500 | S96: 94000 | V96: 150 <= tons < 200 | W96: 200 | X96: 500 | Y96: 3000 | Z96: 44 | AB96: 22000 | AC96: 132000 | AF96: tons >= 250.1 | AH96: 2000 | AI96: 3000 | AJ96: 48 | AL96: 96000 | AM96: 144000
B97: 100 <= tons < 125 | C97: 125 | D97: 500 | E97: 2000 | F97: 47 | H97: 23500 | I97: 94000 | L97: 125 <= tons < 150 | M97: 150 | N97: 500 | O97: 2500 | P97: 34 | R97: 17000 | S97: 85000 | V97: 200 <= tons < 250 | W97: 250 | X97: 1000 | Y97: 4000 | Z97: 27 | AB97: 27000 | AC97: 108000
B98: 125 <= tons < 150 | C98: 150 | D98: 500 | E98: 2250 | F98: 34 | H98: 17000 | I98: 76500 | L98: 150 <= tons < 200 | M98: 200 | N98: 500 | O98: 3000 | P98: 44 | R98: 22000 | S98: 132000 | V98: tons >= 250 | X98: 2000 | Y98: 4500 | Z98: 48 | AB98: 96000 | AC98: 216000
B99: 150 <= tons < 175 | C99: 175 | D99: 500 | E99: 2500 | F99: 27 | H99: 13500 | I99: 67500 | L99: 200 <= tons < 250 | M99: 250 | N99: 500 | O99: 3500 | P99: 27 | R99: 13500 | S99: 94500
B100: 175 <= tons < 200 | C100: 200 | D100: 2000 | E100: 2750 | F100: 17 | H100: 34000 | I100: 46750 | L100: 250 <= tons < 500 | M100: 500 | N100: 2000 | O100: 4000 | P100: 45 | R100: 90000 | S100: 180000
B101: 200 <= tons < 225 | C101: 225 | D101: 2000 | E101: 3000 | F101: 19 | H101: 38000 | I101: 57000 | L101: 500 <= tons < 1000 | M101: 1000 | N101: 2000 | O101: 4500 | P101: 3 | R101: 6000 | S101: 13500
B102: 225 <= tons < 250 | C102: 250 | D102: 2000 | E102: 3250 | F102: 8 | H102: 16000 | I102: 26000 | L102: tons >= 1000 | M102: 5000 | N102: 2000 | O102: 5000 | P102: 0 | R102: 0 | S102: 0
B103: 250 <= tons < 500 | C103: 500 | D103: 2000 | E103: 3500 | F103: 45 | H103: 90000 | I103: 157500
B104: 500 <= tons < 1000 | C104: 1000 | D104: 2000 | E104: 3750 | F104: 3 | H104: 6000 | I104: 11250
B105: 1000 <= tons < 2500 | C105: 2500 | D105: 2000 | E105: 4000 | F105: 0 | H105: 0 | I105: 0
B106: 2500 <= tons < 5000 | C106: 5000 | D106: 2000 | E106: 4500 | F106: 0 | H106: 0 | I106: 0
B107: tons >= 5000 | D107: 2000 | E107: 5000 | F107: 0 | H107: 0 | I107: 0
B118: Totals--> | F118: =SUM(F93:F117) -> 315 | H118: =SUM(H93:H117) -> 286250 | I118: =SUM(I93:I117) -> 708000 | L118: Totals--> | P118: =SUM(P93:P117) -> 315 | R118: =SUM(R93:R117) -> 211500 | S118: =SUM(S93:S117) -> 717000 | V118: Totals--> | Z118: =SUM(Z93:Z117) -> 315 | AB118: =SUM(AB93:AB117) -> 233750 | AC118: =SUM(AC93:AC117) -> 714500 | AF118: Totals--> | AJ118: =SUM(AJ93:AJ117) -> 315 | AL118: =SUM(AL93:AL117) -> 296000 | AM118: =SUM(AM93:AM117) -> 716000

Sheet SmokeSchool (hidden)
B1: Industry | E1: State
A2: FiscalYear | B2: Initial Certs | C2: Re-Certs | D2: $ collected | E2: Initial Certs | F2: Re-Certs | G2: $ Value
A3: 2014 | B3: 25 | C3: 99 | D3: 12750 | E3: 2 | F3: 96 | G3: 9370
A4: 2015 | B4: 45 | C4: 131 | D4: 18070 | E4: 8 | F4: 87 | G4: 9265
A5: 2016 | B5: 30 | C5: 135 | D5: 16575 | E5: 8 | F5: 88 | G5: 9360
A6: 2017 | B6: 20 | C6: 113 | D6: 13235 | E6: 4 | F6: 84 | G6: 8480
A8: Average # attendees | B8: =ROUND(AVERAGE(B3:B6),0) -> 30 | C8: =ROUND(AVERAGE(C3:C6),0) -> 120 | E8: =ROUND(AVERAGE(E3:E6),0) -> 6 | F8: 89
A9: cost/attendee | B9: 125 | C9: 95 | E9: 125 | F9: 95
A10: Annual Average | B10: =B8*B9 -> 3750 | C10: =C8*C9 -> 11400 | D10: =SUM(B10:C10) -> 15150 | E10: =E8*E9 -> 750 | F10: 8455 | G10: =SUM(E10:F10) -> 9205
A12: New cost/attendee | B12: 180 | C12: 150 | E12: 180 | F12: 150
A13: Annual Average | B13: =B8*B12 -> 5400 | C13: =C8*C12 -> 18000 | D13: =SUM(B13:C13) -> 23400 | E13: =E8*E12 -> 1080 | F13: =F8*F12 -> 13350 | G13: =SUM(E13:F13) -> 14430
